2CCN - Level 2 Cost Centre Name,,9CCN - Level 9 Cost Centre Name,9CCC - Level 9 Cost Centre Code,9AN - Level 9 Account Name,9AC - Level 9 Account Code,Transaction Description,Date Paid,Transaction Reference,Analysed Amount,2AC - Level 2 Account Codes,Supplier Name,Supplier Code
Gloucester City Council,23UE,Building Control,PT400,Basic Pay - Temporary Staff,2751,Hours Worked w/e 24/05/2015,01/06/2015,402863,1642.25,NET,Andrew Gough Consulting Ltd,15589J
Gloucester City Council,23UE,REDACTED,REDACTED,REDACTED,REDACTED,REDACTED,01/06/2015,REDACTED,489.44,NET,REDACTED,REDACTED
Gloucester City Council,23UE,REDACTED,REDACTED,REDACTED,REDACTED,REDACTED,01/06/2015,REDACTED,489.44,NET,REDACTED,REDACTED
Gloucester City Council,23UE,REDACTED,REDACTED,REDACTED,REDACTED,REDACTED,01/06/2015,REDACTED,489.44,NET,REDACTED,REDACTED
Gloucester City Council,23UE,REDACTED,REDACTED,REDACTED,REDACTED,REDACTED,01/06/2015,REDACTED,530,NET,REDACTED,REDACTED
Gloucester City Council,23UE,REDACTED,REDACTED,REDACTED,REDACTED,REDACTED,01/06/2015,REDACTED,530,NET,REDACTED,REDACTED
Gloucester City Council,23UE,REDACTED,REDACTED,REDACTED,REDACTED,REDACTED,01/06/2015,REDACTED,500,NET,REDACTED,REDACTED
Gloucester City Council,23UE,REDACTED,REDACTED,REDACTED,REDACTED,REDACTED,01/06/2015,REDACTED,21,NET,REDACTED,REDACTED
Gloucester City Council,23UE,REDACTED,REDACTED,REDACTED,REDACTED,REDACTED,01/06/2015,REDACTED,651,CAP,REDACTED,REDACTED
Gloucester City Council,23UE,Airport Land,RO400,Fees For Services Received,5350,Fees 22/04/2015,02/06/2015,402106,4482.25,NET,Pinsent Masons Llp,15744X
Gloucester City Council,23UE,REDACTED,REDACTED,REDACTED,REDACTED,REDACTED,02/06/2015,REDACTED,25,NET,REDACTED,REDACTED
Gloucester City Council,23UE,REDACTED,REDACTED,REDACTED,REDACTED,REDACTED,02/06/2015,REDACTED,40,NET,REDACTED,REDACTED
Gloucester City Council,23UE,Blackfriars,LA609,General Repair/Maint Buildings,3000,Cover Cleaning 30/03/2015,02/06/2015,402864,65,NET,Into Cleaning,14609P
Gloucester City Council,23UE,REDACTED,REDACTED,REDACTED,REDACTED,REDACTED,02/06/2015,REDACTED,-3.13,NET,REDACTED,REDACTED
Gloucester City Council,23UE,REDACTED,REDACTED,REDACTED,REDACTED,REDACTED,02/06/2015,REDACTED,-5,NET,REDACTED,REDACTED
Gloucester City Council,23UE,REDACTED,REDACTED,REDACTED,REDACTED,REDACTED,02/06/2015,REDACTED,4533.6,CAP,REDACTED,REDACTED
Gloucester City Council,23UE,Cemeteries,HC300,Maint Of Grounds - General,3030,Tread Alluminium Step Ladder,02/06/2015,403031,190,NET,Spaldings,48759Y
Gloucester City Council,23UE,Cemeteries,HC300,Routine R And M - Vehicles,4011,Belt Repair,02/06/2015,403032,155.33,NET,Garden Machinery Gloucester,55641K
Gloucester City Council,23UE,City Museum And Art Gallery,LM200,Publications For Sale,5064,Logo Caps,02/06/2015,402862,255,NET,Sportfolio Europe Lp,14456R
Gloucester City Council,23UE,Civic Admin And Hospitality,RC210,Hire Of Taxis,4053,Chauffeuring Services May 2015,02/06/2015,403027,586,NET,Chris Hall Chauffeuring,11660U
Gloucester City Council,23UE,Civic Admin And Hospitality,RC210,Hospitality,5122,Clean Bronze Plaque,02/06/2015,403008,600,NET,Andy Mitchell Sculptures,08865X
Gloucester City Council,23UE,Community Safety Projects,FP500,Basic Pay - Temporary Staff,2751,temporary staff,02/06/2015,402883,622.4,NET,Travail Employment Ltd,49371W
Gloucester City Council,23UE,Council Streetcare Team,HI101,General Repair/Maint Buildings,3000,Various Items,02/06/2015,402880,190.65,NET,Ermin Plant Hire & Services Ltd,14150V
Gloucester City Council,23UE,Countryside Unit,LP201,Contract Cleaning,3620,Cleaning Rangers Office,02/06/2015,403026,130,NET,Cv Fisher Cleaning Services,14907C
Gloucester City Council,23UE,Crematorium,HC200,Memorial Plaques,5053,Plaques,02/06/2015,403033,354,NET,Arkell & Hurcombe,59812T
Gloucester City Council,23UE,Crematorium,HC200,Operational Equipment <5000,5012,Supply & Fit Polysafe Vogue Ultra Safety,02/06/2015,403030,1812.92,NET,Chlodel Carpets & Flooring Ltd,12596S
Gloucester City Council,23UE,Crematorium,HC200,Repair/Maint Of Fixed Plant,3006,Various Items,02/06/2015,403045,6747.87,NET,Facultatieve Technologies Ltd,51210H
Gloucester City Council,23UE,Docks Complex - Services,RB100,Cleaning Materials,3600,Cleaning Materials,02/06/2015,403005,17.25,NET,Core Hygiene Ltd,03885P
Gloucester City Council,23UE,Docks Complex - Services,RB100,General Repair/Maint Buildings,3000,Checks May 2015,02/06/2015,402882,1182.76,NET,Hewer Facilities Mgt Ltd,05232A
Gloucester City Council,23UE,Financial Services,RT200,Training Course Fees,5367,AAT Exam,02/06/2015,403028,73.5,NET,Pitman Training Cheltenham,15476Z
Gloucester City Council,23UE,Folk Museum,LM210,Operational Equipment <5000,5012,30/09/2014 Mencap,02/06/2015,402071,11.6,NET,As Conferences Ltd,14724N
Gloucester City Council,23UE,Folk Museum,LM210,Publications For Sale,5064,Logo Caps,02/06/2015,402862,130,NET,Sportfolio Europe Lp,14456R
Gloucester City Council,23UE,Gloucester Guildhall,LA100,Cleaning Materials,3600,Rental Contract Jun - Sep 2015,02/06/2015,402606,52.65,NET,Wessex Products (Leasing) Ltd,03684C
Gloucester City Council,23UE,Gloucester Guildhall,LA100,Subscriptions,5600,Membership of Gloucester City Safe,02/06/2015,403021,91.25,NET,Gloucester City Safe,14709J
Gloucester City Council,23UE,REDACTED,REDACTED,REDACTED,REDACTED,REDACTED,02/06/2015,REDACTED,298.45,NET,REDACTED,REDACTED
Gloucester City Council,23UE,REDACTED,REDACTED,REDACTED,REDACTED,REDACTED,02/06/2015,REDACTED,45,NET,REDACTED,REDACTED
Gloucester City Council,23UE,REDACTED,REDACTED,REDACTED,REDACTED,REDACTED,02/06/2015,REDACTED,100,NET,REDACTED,REDACTED
Gloucester City Council,23UE,REDACTED,REDACTED,REDACTED,REDACTED,REDACTED,02/06/2015,REDACTED,600,NET,REDACTED,REDACTED
Gloucester City Council,23UE,Guildhall Events,LA200,Fees For Services Received,5350,Distribution on Whats on Booklet,02/06/2015,403001,382.5,NET,Glide Media,58829J
Gloucester City Council,23UE,Guildhall Events,LA200,Fees For Services Received,5350,Whats on Booklets,02/06/2015,403025,1153,NET,Paddock Print,03014H
Gloucester City Council,23UE,REDACTED,REDACTED,REDACTED,REDACTED,REDACTED,02/06/2015,REDACTED,520,NET,REDACTED,REDACTED
Gloucester City Council,23UE,REDACTED,REDACTED,REDACTED,REDACTED,REDACTED,02/06/2015,REDACTED,120,NET,REDACTED,REDACTED
Gloucester City Council,23UE,REDACTED,REDACTED,REDACTED,REDACTED,REDACTED,02/06/2015,REDACTED,75,NET,REDACTED,REDACTED
Gloucester City Council,23UE,REDACTED,REDACTED,REDACTED,REDACTED,REDACTED,02/06/2015,REDACTED,0,NET,REDACTED,REDACTED
Gloucester City Council,23UE,REDACTED,REDACTED,REDACTED,REDACTED,REDACTED,02/06/2015,REDACTED,341.53,NET,REDACTED,REDACTED
Gloucester City Council,23UE,Homelessness Prevention,CH122,Basic Pay - Temporary Staff,2751,temporary staff,02/06/2015,403036,682.82,NET,Building Recruitment Company Ltd,55385E
Gloucester City Council,23UE,REDACTED,REDACTED,REDACTED,REDACTED,REDACTED,02/06/2015,REDACTED,370,NET,REDACTED,REDACTED
Gloucester City Council,23UE,Investment Property,RB500,Consultants Fees,5349,Professional Charges,02/06/2015,403018,1750,NET,Alder King,02367D
Gloucester City Council,23UE,Investment Property,RB500,General Repair/Maint Buildings,3000,Annual Service,02/06/2015,399861,320,NET,Hewer Facilities Mgt Ltd,05232A
Gloucester City Council,23UE,Investment Property,RB500,General Repair/Maint Buildings,3000,Boiler Fault 30/04/2015,02/06/2015,402871,168.29,NET,Hewer Facilities Mgt Ltd,05232A
Gloucester City Council,23UE,Nms Contract,HI102,Additional Non-Tender Items,6973,Purple Bags,02/06/2015,402847,953,NET,Polystar Plastics Ltd,01120C
Gloucester City Council,23UE,Off Street Car Parks,PP110,Contracted Services,6970,2015/16 Q1,02/06/2015,400847,1060,NET,Patrol,09431C
Gloucester City Council,23UE,Registration Of Electors,RS400,Fees For Services Received,5350,Polling Signs,02/06/2015,403012,106,NET,Signet Signs Ltd,15563D
Gloucester City Council,23UE,Retail Market - Landlord,HM300,Cleaning Materials,3600,Cleaning Materials,02/06/2015,403004,225.15,NET,Core Hygiene Ltd,03885P
Gloucester City Council,23UE,REDACTED,REDACTED,REDACTED,REDACTED,REDACTED,02/06/2015,REDACTED,530,NET,REDACTED,REDACTED
Gloucester City Council,23UE,City Museum And Art Gallery,LM200,Printing,5300,Easter Activities Books,03/06/2015,403010,510,NET,Paddock Print,03014H
Gloucester City Council,23UE,Contaminated Land,HE301,Basic Pay - Operational Staff,1001,Contaminated Work,03/06/2015,402991,1295.84,NET,Bromsgrove District Council,15037G
Gloucester City Council,23UE,Crematorium,HC200,Fees For Services Received,5350,Crem Fees May 2015,03/06/2015,403136,1398.96,NET,Dr C M Stretton,00306P
Gloucester City Council,23UE,Crematorium,HC200,Fees For Services Received,5350,Crem Fees May 2015,03/06/2015,403137,1040.64,NET,Dr D Martin,00890P
Gloucester City Council,23UE,Crematorium,HC200,Fees For Services Received,5350,Crem Fees May 2015,03/06/2015,403138,406.88,NET,Dr R W Bell,01571P
Gloucester City Council,23UE,Docks Complex - Services,RB100,Cleaning Materials,3600,Cleaning Materials,03/06/2015,402586,73.55,NET,Core Hygiene Ltd,03885P
Gloucester City Council,23UE,Grants To Voluntary Sector,FG100,Grants,7100C,Community Grant 2015/16,03/06/2015,403140,2500,NET,Kingfisher Treasure Seekers Ltd,15209B
Gloucester City Council,23UE,Homelessness,CH120,Fees For Services Received,5350,Medical Report,03/06/2015,402603,20.5,NET,Rosebank Health,03041E
Gloucester City Council,23UE,Homelessness,CH120,Rent In Advance,5516,Housing RIA & Deposit,03/06/2015,403135,588.52,NET,Lands Propertys,11779R
Gloucester City Council,23UE,REDACTED,REDACTED,REDACTED,REDACTED,REDACTED,03/06/2015,REDACTED,263.08,NET,REDACTED,REDACTED
Gloucester City Council,23UE,REDACTED,REDACTED,REDACTED,REDACTED,REDACTED,03/06/2015,REDACTED,263.08,NET,REDACTED,REDACTED
Gloucester City Council,23UE,Homelessness Prevention,CH122,Fees For Services Received,5350,Medical Report,03/06/2015,402603,19.5,NET,Rosebank Health,03041E
Gloucester City Council,23UE,REDACTED,REDACTED,REDACTED,REDACTED,REDACTED,03/06/2015,REDACTED,285,NET,REDACTED,REDACTED
Gloucester City Council,23UE,REDACTED,REDACTED,REDACTED,REDACTED,REDACTED,03/06/2015,REDACTED,285,NET,REDACTED,REDACTED
Gloucester City Council,23UE,Legal Services,RS200,Basic Pay - Temporary Staff,2751,temporary staff,03/06/2015,397533,487.29,NET,Premiere Employment Group Ltd,55468Z
Gloucester City Council,23UE,Mandatory Rent Allowances,DD100,Rent Allowances - Normal Payts,7200,Housing RIA & Deposit,03/06/2015,403135,1200,NET,Lands Propertys,11779R
Gloucester City Council,23UE,Publications,RC450,Subscriptions,5600,Licence Fee,03/06/2015,403011,1300,NET,Nla Media Access Ltd,10001D
Gloucester City Council,23UE,Vehicles,RS140,Basic Pay - Cleaners,2401,Fuel,03/06/2015,403040,230.65,NET,Allstar Business Solutions Ltd (Arval),06594A
Gloucester City Council,23UE,Youth Grant 2011/12,FP107,Grants,7100C,Youth Grant 2015/16,03/06/2015,403139,2181,NET,Kingfisher Treasure Seekers Ltd,15209B
Gloucester City Council,23UE,Council Streetcare Team,HI101,General Repair/Maint Buildings,3000,Various Items,04/06/2015,403250,198.77,NET,Ppg Architectural Coatings Uk Limited,04709C
Gloucester City Council,23UE,Development Management,PT200,Advertising And Publicity,5702,Advertisement 30/04/2015,04/06/2015,402060,204.51,NET,Local World Ltd,08556P
Gloucester City Council,23UE,Investment Property,RB500,Repair/Maint Of Fixed Plant,3006,Guildhall- Radiators,04/06/2015,399561,452.5,NET,Hewer Facilities Mgt Ltd,05232A
Gloucester City Council,23UE,Legal Services,RS200,Basic Pay - Temporary Staff,2751,temporary staff,04/06/2015,398724,697.11,NET,Sellick Partnership Group Ltd,11057C
Gloucester City Council,23UE,Northwarehouse,RB150,Repair/Maint Of Fixed Plant,3006,Call out 06/11/2014,04/06/2015,395844,150,NET,Hewer Facilities Mgt Ltd,05232A
Gloucester City Council,23UE,REDACTED,REDACTED,REDACTED,REDACTED,REDACTED,04/06/2015,REDACTED,510,CAP,REDACTED,REDACTED
Gloucester City Council,23UE,Building Control,PT400,Basic Pay - Temporary Staff,2751,temporary staff,05/06/2015,403188,1400.41,NET,Andrew Gough Consulting Ltd,15589J
Gloucester City Council,23UE,Business Transformation & Tech,RT700,Fees For Services Received,5350,Expenses,05/06/2015,402854,15148.85,NET,Ncc Services Ltd,03054V
Gloucester City Council,23UE,City Museum Catering,LM202,Catering Provisions -Food,5110,Fruit & Veg April 2015,05/06/2015,403230,31.73,NET,Woody'S Fruit & Veg,11798L
Gloucester City Council,23UE,City Museum Catering,LM202,Catering Provisions -Food,5110,Milk,05/06/2015,403220,4.6,NET,Total Produce Gloucester,12645E
Gloucester City Council,23UE,City Museum Catering,LM202,Catering Provisions -Food,5110,Milk,05/06/2015,403221,4.6,NET,Total Produce Gloucester,12645E
Gloucester City Council,23UE,City Museum Catering,LM202,Catering Provisions -Food,5110,Milk,05/06/2015,403222,4.6,NET,Total Produce Gloucester,12645E
Gloucester City Council,23UE,City Museum Catering,LM202,Catering Provisions -Food,5110,Milk,05/06/2015,403223,4.6,NET,Total Produce Gloucester,12645E
Gloucester City Council,23UE,City Museum Catering,LM202,Catering Provisions -Food,5110,Milk,05/06/2015,403224,4.6,NET,Total Produce Gloucester,12645E
Gloucester City Council,23UE,City Museum Catering,LM202,Catering Provisions -Food,5110,Milk,05/06/2015,403225,6.9,NET,Total Produce Gloucester,12645E
Gloucester City Council,23UE,City Museum Catering,LM202,Catering Provisions -Food,5110,Milk,05/06/2015,403226,6.9,NET,Total Produce Gloucester,12645E
Gloucester City Council,23UE,Docks Complex - Services,RB100,Cleaning Materials,3600,Cleaning Materials,05/06/2015,402774,158.5,NET,Core Hygiene Ltd,03885P
Gloucester City Council,23UE,Docks Complex - Services,RB100,Operational Equipment <5000,5012,herbert warehouse,05/06/2015,398162,139,NET,Ashleigh & Crystal Blinds,58897R
Gloucester City Council,23UE,Docks Complex - Services,RB100,Recycling,3631,RECYCLING,05/06/2015,400846,236,NET,Printwaste Recycling,57114W
Gloucester City Council,23UE,Docks Complex - Telephones,RB120,Telephones And Fax,5410,Call Charges Apr- May 2015,05/06/2015,401622,208.92,NET,Virgin Media Business,01869B
Gloucester City Council,23UE,Docks Complex - Telephones,RB120,Telephones And Fax,5410,Charges April 2015,05/06/2015,402377,10260,NET,Virgin Media Business,01869B
Gloucester City Council,23UE,Docks Complex - Telephones,RB120,Telephones And Fax,5410,Charges Mar - Apr 2015,05/06/2015,400139,148.11,NET,Virgin Media Business,01869B
Gloucester City Council,23UE,Docks Complex - Telephones,RB120,Telephones And Fax,5410,Rental Charges 15/16,05/06/2015,401097,75,NET,Virgin Media Business,01869B
Gloucester City Council,23UE,REDACTED,REDACTED,REDACTED,REDACTED,REDACTED,05/06/2015,REDACTED,862,NET,REDACTED,REDACTED
Gloucester City Council,23UE,Guildhall Bar And Caf�,LA210,Catering Provisions -Food,5110,Food,05/06/2015,403218,83.98,NET,Woodward Foodservice,10714F
Gloucester City Council,23UE,Guildhall Bar And Caf�,LA210,Catering Provisions -Food,5110,Food,05/06/2015,403219,169.46,NET,Woodward Foodservice,10714F
Gloucester City Council,23UE,Guildhall Bar And Caf�,LA210,Catering Provisions -Food,5110,Fruit & Veg April 2015,05/06/2015,403229,78.24,NET,Woody'S Fruit & Veg,11798L
Gloucester City Council,23UE,Guildhall Bar And Caf�,LA210,Catering Provisions -Food,5110,Milk,05/06/2015,403231,4.6,NET,Total Produce Gloucester,12645E
Gloucester City Council,23UE,Guildhall Bar And Caf�,LA210,Catering Provisions -Food,5110,Milk,05/06/2015,403232,4.6,NET,Total Produce Gloucester,12645E
Gloucester City Council,23UE,Guildhall Bar And Caf�,LA210,Catering Provisions -Food,5110,Milk,05/06/2015,403233,4.6,NET,Total Produce Gloucester,12645E
Gloucester City Council,23UE,Guildhall Bar And Caf�,LA210,Catering Provisions -Food,5110,Milk,05/06/2015,403234,4.6,NET,Total Produce Gloucester,12645E
Gloucester City Council,23UE,Guildhall Bar And Caf�,LA210,Catering Provisions -Food,5110,Milk,05/06/2015,403235,4.6,NET,Total Produce Gloucester,12645E
Gloucester City Council,23UE,Guildhall Bar And Caf�,LA210,Catering Provisions -Food,5110,Milk,05/06/2015,403236,4.6,NET,Total Produce Gloucester,12645E
Gloucester City Council,23UE,Guildhall Bar And Caf�,LA210,Catering Provisions -Food,5110,Milk,05/06/2015,403237,4.6,NET,Total Produce Gloucester,12645E
Gloucester City Council,23UE,Guildhall Bar And Caf�,LA210,Catering Provisions -Food,5110,Milk,05/06/2015,403238,4.6,NET,Total Produce Gloucester,12645E
Gloucester City Council,23UE,Guildhall Bar And Caf�,LA210,Catering Provisions -Food,5110,Milk,05/06/2015,403239,4.6,NET,Total Produce Gloucester,12645E
Gloucester City Council,23UE,Guildhall Bar And Caf�,LA210,Catering Provisions -Food,5110,Milk,05/06/2015,403240,4.6,NET,Total Produce Gloucester,12645E
Gloucester City Council,23UE,Guildhall Bar And Caf�,LA210,Catering Provisions -Food,5110,Milk,05/06/2015,403241,4.6,NET,Total Produce Gloucester,12645E
Gloucester City Council,23UE,Guildhall Bar And Caf�,LA210,Catering Provisions -Food,5110,Milk,05/06/2015,403242,4.6,NET,Total Produce Gloucester,12645E
Gloucester City Council,23UE,Guildhall Bar And Caf�,LA210,Catering Provisions -Food,5110,Milk,05/06/2015,403243,4.6,NET,Total Produce Gloucester,12645E
Gloucester City Council,23UE,Guildhall Bar And Caf�,LA210,Catering Provisions -Food,5110,Milk,05/06/2015,403244,4.6,NET,Total Produce Gloucester,12645E
Gloucester City Council,23UE,Guildhall Bar And Caf�,LA210,Catering Provisions -Food,5110,Milk,05/06/2015,403245,4.6,NET,Total Produce Gloucester,12645E
Gloucester City Council,23UE,REDACTED,REDACTED,REDACTED,REDACTED,REDACTED,05/06/2015,REDACTED,2380.04,NET,REDACTED,REDACTED
Gloucester City Council,23UE,REDACTED,REDACTED,REDACTED,REDACTED,REDACTED,05/06/2015,REDACTED,272.72,NET,REDACTED,REDACTED
Gloucester City Council,23UE,REDACTED,REDACTED,REDACTED,REDACTED,REDACTED,05/06/2015,REDACTED,300,NET,REDACTED,REDACTED
Gloucester City Council,23UE,REDACTED,REDACTED,REDACTED,REDACTED,REDACTED,05/06/2015,REDACTED,1645,NET,REDACTED,REDACTED
Gloucester City Council,23UE,Aspire Admin Charges,LC105,Other Minor Income,9900,BAILIFF PAYMENTS 15/05/15,08/06/2015,403273,83.2,NET,Aspire Sports & Cultural Trust,08135V
Gloucester City Council,23UE,Asset Management,RS300,Basic Pay -Admin /Prof Staff,2601,Consultancy Services May 2015,08/06/2015,403213,5200,NET,Ardley Associates,09369F
Gloucester City Council,23UE,Building Control,PT400,Basic Pay - Temporary Staff,2751,temporary staff,08/06/2015,402845,1349.4,NET,The Oyster Partnership Limited,14900T
Gloucester City Council,23UE,Business Transformation & Tech,RT700,Computer Hardware Maintenance,5426,Annual Software Work,08/06/2015,402581,1650.65,NET,Northgate Public Services Uk Ltd,08982S
Gloucester City Council,23UE,REDACTED,REDACTED,REDACTED,REDACTED,REDACTED,08/06/2015,REDACTED,200,NET,REDACTED,REDACTED
Gloucester City Council,23UE,City Museum And Art Gallery,LM200,Printing,5300,Whats on Guide,08/06/2015,403009,1028,NET,Paddock Print,03014H
Gloucester City Council,23UE,City Museum And Art Gallery,LM200,Publications For Sale,5064,BOOKS,08/06/2015,399011,78,NET,The History Press Ltd,07144D
Gloucester City Council,23UE,City Museum And Art Gallery,LM200,Publications For Sale,5064,Flag Pin,08/06/2015,403211,25,NET,Brandco Management Ltd,14960Y
Gloucester City Council,23UE,City Museum And Art Gallery,LM200,Publications For Sale,5064,Kirby/ Gloucester Then and Now,08/06/2015,402035,84.44,NET,The History Press Ltd,07144D
Gloucester City Council,23UE,City Museum And Art Gallery,LM200,Publications For Sale,5064,Wrist Bands,08/06/2015,403003,98,NET,Awnhill,11767Y
Gloucester City Council,23UE,City Museum Catering,LM202,Catering Provisions -Food,5110,Food,08/06/2015,403228,159.68,NET,Woodward Foodservice,10714F
Gloucester City Council,23UE,City Museum Catering,LM202,Operational Equipment <5000,5012,Espresso Machine Rental January 2015,08/06/2015,399838,135,NET,La Spaziale Uk Ltd,11823P
Gloucester City Council,23UE,Crematorium,HC200,Memorial Plaques,5053,Plaque,08/06/2015,403199,48,NET,Arkell & Hurcombe,59812T
Gloucester City Council,23UE,Crematorium,HC200,Memorial Plaques,5053,Plaques,08/06/2015,403198,156,NET,Arkell & Hurcombe,59812T
Gloucester City Council,23UE,Folk Museum,LM210,Printing,5300,Whats on Guide,08/06/2015,403009,1028,NET,Paddock Print,03014H
Gloucester City Council,23UE,Gl1 Pool Air Handling System,LY152,Contract Payments,20,GL1 Leisure Centre,08/06/2015,403247,591,CAP,Esg Pool Ventilation Ltd,14715P
Gloucester City Council,23UE,Grants To Voluntary Sector,FG100,Abcd Grants,7100A,Grant 15/16 - Kingsway Runners,08/06/2015,403276,500,NET,Gl Communities,09535X
Gloucester City Council,23UE,Grants To Voluntary Sector,FG100,Abcd Grants,7100A,Grant 15/16 - Mens Shed,08/06/2015,403275,500,NET,Gl Communities,09535X
Gloucester City Council,23UE,Guildhall Bar And Caf�,LA210,Catering Provisions -Liquor,5111,May-15,08/06/2015,403203,38.42,NET,Boc Ltd,59172L
Gloucester City Council,23UE,Housing Works In Default,HD500,Clearance And Cleansing Fees,5384,Cleaning Services,08/06/2015,403201,2004,NET,Cheltenham Cleaning Specialists,15756P
Gloucester City Council,23UE,Inhouse Training,EH200,Fees For Services Received,5350,Train the Trainer - 22/04/2015,08/06/2015,401351,175,NET,Gloucestershire Enterprise Ltd,18643A
Gloucester City Council,23UE,Investment Property,RB500,General Repair/Maint Buildings,3000,GUILDHALL,08/06/2015,400982,152.5,NET,Hewer Facilities Mgt Ltd,05232A
Gloucester City Council,23UE,Investment Property,RB500,General Repair/Maint Buildings,3000,Repairs to Geoclima Chiller,08/06/2015,403248,588.21,NET,Cooltherm,06087Z
Gloucester City Council,23UE,Investment Property,RB500,General Repair/Maint Buildings,3000,Tredworth Cemetery 27/05/2015,08/06/2015,403214,110,NET,Three Counties Drain Service,44033V
Gloucester City Council,23UE,Investment Property,RB500,Lift Maintenance,3051,Engineer 20/05/2015,08/06/2015,403216,84.38,NET,Pickerings Europe Ltd,58816U
Gloucester City Council,23UE,Investment Property,RB500,Lift Maintenance,3051,Work 13/04/2015,08/06/2015,401818,1797.28,NET,Pickerings Europe Ltd,58816U
Gloucester City Council,23UE,REDACTED,REDACTED,REDACTED,REDACTED,REDACTED,08/06/2015,REDACTED,21,NET,REDACTED,REDACTED
Gloucester City Council,23UE,Off Street Car Parks,PP110,Fees For Services Received,5350,March & May 2015,08/06/2015,401843,493.34,NET,Parkeon Ltd,03238G
Gloucester City Council,23UE,Off Street Car Parks,PP110,General Repair/Maint Buildings,3000,Call Out 15/04/2015,08/06/2015,401867,498.5,NET,Parkeon Ltd,03238G
Gloucester City Council,23UE,Retail Market - Landlord,HM300,Trade Refuse Collection,3630,Food Waste,08/06/2015,403209,120,NET,B & S Pointon Ltd,06253G
Gloucester City Council,23UE,Stationery Services,RS150,Stationery,5302,Paper,08/06/2015,402325,59.4,NET,Premier Paper Group Ltd,09166Y
Gloucester City Council,23UE,Townscape Heritage Initiative,LY145,Contract Payments,20,Stone Carving Festival Contribution,08/06/2015,402711,500,CAP,Gloucester Stone Carving Festival,13841L
Gloucester City Council,23UE,Utilities,PT502,Electricity Supply,3110,ACCT 601980613 YMCA,08/06/2015,401913,59.6,NET,British Gas Business,08301C
Gloucester City Council,23UE,REDACTED,REDACTED,REDACTED,REDACTED,REDACTED,09/06/2015,REDACTED,204,NET,REDACTED,REDACTED
Gloucester City Council,23UE,REDACTED,REDACTED,REDACTED,REDACTED,REDACTED,09/06/2015,REDACTED,204,NET,REDACTED,REDACTED
Gloucester City Council,23UE,Business Transformation & Tech,RT700,Computer Software <5000,5425,Subscription 15/16,09/06/2015,402133,840,NET,Parker Software,14223T
Gloucester City Council,23UE,City Museum Catering,LM202,Catering Provisions -Food,5110,Food,09/06/2015,403249,86.86,NET,Woodward Foodservice,10714F
Gloucester City Council,23UE,Civica Contract Revs & Bens,RT250,Contracted Services,6970,Revenues & Benefits Services July 15,09/06/2015,403204,137322.7,NET,Civica Uk Ltd,10841X
Gloucester City Council,23UE,Client Revs & Bens Contract,RT240,Bailiffs Fees,5368,VAT due on fees,09/06/2015,403157,284.85,NET,Bristow & Sutor,05450M
Gloucester City Council,23UE,Client Revs & Bens Contract,RT240,Bailiffs Fees,5368,VAT due on fees,09/06/2015,403173,0,NET,Bristow & Sutor,05450M
Gloucester City Council,23UE,Crematorium,HC200,Memorial Plaques,5053,Plaques,09/06/2015,403182,629,NET,Arkell & Hurcombe,59812T
Gloucester City Council,23UE,Crematorium,HC200,National Assist Act Burial Exp,5593,funeral costs,09/06/2015,403167,450,NET,Selim Smith & Co Funeral Directors,15156X
Gloucester City Council,23UE,Development Management,PT200,Microfilming / Cd-Rom Storage,5330,Storage May 2015,09/06/2015,403197,26.44,NET,Transmedia Technology Ltd,08635T
Gloucester City Council,23UE,Docks Complex - Services,RB100,Catering Provisions -Food,5110,FOOD,09/06/2015,402997,79.2,NET,Janes Pantry,24500W
Gloucester City Council,23UE,Docks Complex - Services,RB100,Catering Provisions -Food,5110,FOOD,09/06/2015,402998,115.2,NET,Janes Pantry,24500W
Gloucester City Council,23UE,Docks Complex - Services,RB100,Catering Provisions -Food,5110,FOOD,09/06/2015,403404,47.52,NET,Janes Pantry,24500W
Gloucester City Council,23UE,Docks Complex - Services,RB100,Catering Provisions -Food,5110,FOOD,09/06/2015,403405,55.44,NET,Janes Pantry,24500W
Gloucester City Council,23UE,Docks Complex - Services,RB100,Catering Provisions -Food,5110,FOOD,09/06/2015,403406,39.6,NET,Janes Pantry,24500W
Gloucester City Council,23UE,Docks Complex - Services,RB100,Catering Provisions -Food,5110,FOOD,09/06/2015,403407,190.8,NET,Janes Pantry,24500W
Gloucester City Council,23UE,Docks Complex - Telephones,RB120,Telephones And Fax,5410,ACCT 511746301,09/06/2015,401034,30,NET,Virgin Media Payments Ltd,09376J
Gloucester City Council,23UE,Docks Complex - Telephones,RB120,Telephones And Fax,5410,ACCT 513231401,09/06/2015,401033,39,NET,Virgin Media Payments Ltd,09376J
Gloucester City Council,23UE,Docks Complex - Telephones,RB120,Telephones And Fax,5410,Blueyonder May - June 2015,09/06/2015,402491,80,NET,Virgin Media Payments Ltd,09376J
Gloucester City Council,23UE,Docks Complex - Telephones,RB120,Telephones And Fax,5410,Blueyonder User - May 2015,09/06/2015,401813,80,NET,Virgin Media Payments Ltd,09376J
Gloucester City Council,23UE,Docks Complex - Telephones,RB120,Telephones And Fax,5410,Cable Modem Charge May - Jun 2015,09/06/2015,402493,33,NET,Virgin Media Payments Ltd,09376J
Gloucester City Council,23UE,Docks Complex - Telephones,RB120,Telephones And Fax,5410,Cable Modem Charges Apr - May 2015,09/06/2015,401349,33,NET,Virgin Media Payments Ltd,09376J
Gloucester City Council,23UE,Docks Complex - Telephones,RB120,Telephones And Fax,5410,Charges Apr - May 2015,09/06/2015,401350,80,NET,Virgin Media Payments Ltd,09376J
Gloucester City Council,23UE,Docks Complex - Telephones,RB120,Telephones And Fax,5410,Charges May - Jun 2015,09/06/2015,402378,30,NET,Virgin Media Payments Ltd,09376J
Gloucester City Council,23UE,Docks Complex - Telephones,RB120,Telephones And Fax,5410,Charges May - Jun 2015,09/06/2015,402379,39,NET,Virgin Media Payments Ltd,09376J
Gloucester City Council,23UE,Docks Complex - Telephones,RB120,Telephones And Fax,5410,Line Rental Apr - May 2015,09/06/2015,401348,21.73,NET,Virgin Media Payments Ltd,09376J
Gloucester City Council,23UE,Docks Complex - Telephones,RB120,Telephones And Fax,5410,Line Rental May - Jun 2015,09/06/2015,402492,17.32,NET,Virgin Media Payments Ltd,09376J
Gloucester City Council,23UE,Gloucester Partnership,FP106,Other Minor Supplies Services,5590,Meeting Room,09/06/2015,403186,15,NET,Quedgeley Parish Council,48506G
Gloucester City Council,23UE,Guildhall Bar And Caf�,LA210,Catering Provisions -Food,5110,Espressos,09/06/2015,403180,161.4,NET,Ethical Addictions Ltd,11654N
Gloucester City Council,23UE,Guildhall Bar And Caf�,LA210,Catering Provisions -Food,5110,Food w/e 17/05/2015,09/06/2015,402786,34.2,NET,Janes Pantry,24500W
Gloucester City Council,23UE,Guildhall Bar And Caf�,LA210,Catering Provisions -Liquor,5111,Gloucester Gold,09/06/2015,403166,114,NET,Gloucester Brewery,13373F
Gloucester City Council,23UE,REDACTED,REDACTED,REDACTED,REDACTED,REDACTED,09/06/2015,REDACTED,9.92,NET,REDACTED,REDACTED
Gloucester City Council,23UE,REDACTED,REDACTED,REDACTED,REDACTED,REDACTED,09/06/2015,REDACTED,20.85,NET,REDACTED,REDACTED
Gloucester City Council,23UE,REDACTED,REDACTED,REDACTED,REDACTED,REDACTED,09/06/2015,REDACTED,100,NET,REDACTED,REDACTED
Gloucester City Council,23UE,REDACTED,REDACTED,REDACTED,REDACTED,REDACTED,09/06/2015,REDACTED,24.94,NET,REDACTED,REDACTED
Gloucester City Council,23UE,REDACTED,REDACTED,REDACTED,REDACTED,REDACTED,09/06/2015,REDACTED,75.06,NET,REDACTED,REDACTED
Gloucester City Council,23UE,REDACTED,REDACTED,REDACTED,REDACTED,REDACTED,09/06/2015,REDACTED,286.56,NET,REDACTED,REDACTED
Gloucester City Council,23UE,REDACTED,REDACTED,REDACTED,REDACTED,REDACTED,09/06/2015,REDACTED,319.15,NET,REDACTED,REDACTED
Gloucester City Council,23UE,REDACTED,REDACTED,REDACTED,REDACTED,REDACTED,09/06/2015,REDACTED,146.46,NET,REDACTED,REDACTED
Gloucester City Council,23UE,REDACTED,REDACTED,REDACTED,REDACTED,REDACTED,09/06/2015,REDACTED,75,NET,REDACTED,REDACTED
Gloucester City Council,23UE,REDACTED,REDACTED,REDACTED,REDACTED,REDACTED,09/06/2015,REDACTED,943.5,NET,REDACTED,REDACTED
Gloucester City Council,23UE,Guildhall Events,LA200,Advertising And Publicity,5702,Adverts,09/06/2015,403196,420,NET,Forest Of Dean & Wye Valley Review,14590K
Gloucester City Council,23UE,REDACTED,REDACTED,REDACTED,REDACTED,REDACTED,09/06/2015,REDACTED,110,NET,REDACTED,REDACTED
Gloucester City Council,23UE,REDACTED,REDACTED,REDACTED,REDACTED,REDACTED,09/06/2015,REDACTED,110,NET,REDACTED,REDACTED
Gloucester City Council,23UE,REDACTED,REDACTED,REDACTED,REDACTED,REDACTED,09/06/2015,REDACTED,250,NET,REDACTED,REDACTED
Gloucester City Council,23UE,Investment Property,RB500,General Repair/Maint Buildings,3000,Kings Square Bollards,09/06/2015,403215,60,NET,Nsgl Ltd,12539E
Gloucester City Council,23UE,Printing,RP103,Printing,5300,Printing May 2015,09/06/2015,403187,1791,NET,Alpha Colour Printers Ltd,00945B
Gloucester City Council,23UE,REDACTED,REDACTED,REDACTED,REDACTED,REDACTED,09/06/2015,REDACTED,9208.32,NET,REDACTED,REDACTED
Gloucester City Council,23UE,Stationery Services,RS150,Stationery,5302,Stationary,09/06/2015,403181,71.16,NET,Lyreco Uk Ltd,11746G
Gloucester City Council,23UE,The Arbor,HC501,Catering Provisions -Food,5110,FOOD,09/06/2015,402986,108.31,NET,Janes Pantry,24500W
Gloucester City Council,23UE,The Arbor,HC501,Catering Provisions -Food,5110,FOOD,09/06/2015,403336,176.14,NET,Janes Pantry,24500W
Gloucester City Council,23UE,The Arbor,HC501,Catering Provisions -Food,5110,FOOD,09/06/2015,403408,148.01,NET,Janes Pantry,24500W
Gloucester City Council,23UE,The Arbor,HC501,Catering Provisions -Food,5110,Food w/e 03/05/2015,09/06/2015,402107,159.74,NET,Janes Pantry,24500W
Gloucester City Council,23UE,The Arbor,HC501,Catering Provisions -Food,5110,Food w/e 10/05/2015,09/06/2015,402464,55.57,NET,Janes Pantry,24500W
Gloucester City Council,23UE,Blackfriars,LA609,Hire Of Equipment,5020,Waste Bins,10/06/2015,402893,97.42,NET,Enterprise (Aol) Ltd,06695G
Gloucester City Council,23UE,City Museum,RY153,Contract Payments,20,Additional Works,10/06/2015,403395,1235.64,CAP,Showguard Ltd,15047D
Gloucester City Council,23UE,City Museum And Art Gallery,LM200,Security Services Fees,5351,Monitoring & Maintenance,10/06/2015,401624,311.35,NET,Secom Plc,51471A
Gloucester City Council,23UE,City Museum And Art Gallery,LM200,Security Services Fees,5351,Rental Maintenance May - July 2015,10/06/2015,401625,46.31,NET,Secom Plc,51471A
Gloucester City Council,23UE,Civica It Contract,RT270,Contracted Services,6970,IT Services July 2015,10/06/2015,403205,47916.67,NET,Civica Uk Ltd,10841X
Gloucester City Council,23UE,Crematorium,HC200,Memorial Plaques,5053,Cheviott Keepsake,10/06/2015,403179,16,NET,Teleshore (Uk) Ltd,56819G
Gloucester City Council,23UE,Development Management,PT200,Advertising And Publicity,5702,Advertisement 21/05/2015,10/06/2015,402987,233.73,NET,Local World Ltd,08556P
Gloucester City Council,23UE,Docks Complex - Services,RB100,Repair/Maint Of Fixed Plant,3006,May - July 2015 Maintenance,10/06/2015,402163,578.46,NET,Gea Denco Ltd,57271C
Gloucester City Council,23UE,Docks Complex - Telephones,RB120,Mobile Phones,5409,HTC Desire,10/06/2015,403162,140,NET,Everything Everywhere Ltd (T-Mobile),02334V
Gloucester City Council,23UE,Docks Complex - Telephones,RB120,Mobile Phones,5409,Samsung Galaxy Ace 4,10/06/2015,403164,196,NET,Everything Everywhere Ltd (T-Mobile),02334V
Gloucester City Council,23UE,Docks Complex - Telephones,RB120,Mobile Phones,5409,Samsung Galaxy Ace 4,10/06/2015,403165,98,NET,Everything Everywhere Ltd (T-Mobile),02334V
Gloucester City Council,23UE,Emergency Out Of Hours Calls,RB301,Fees For Services Received,5350,Facility Fee June 2015,10/06/2015,403159,237.57,NET,Office Response,09439K
Gloucester City Council,23UE,Financial Services,RT200,Training Course Fees,5367,AAT Exam,10/06/2015,403172,76.5,NET,Pitman Training Cheltenham,15476Z
Gloucester City Council,23UE,REDACTED,REDACTED,REDACTED,REDACTED,REDACTED,10/06/2015,REDACTED,670,NET,REDACTED,REDACTED
Gloucester City Council,23UE,REDACTED,REDACTED,REDACTED,REDACTED,REDACTED,10/06/2015,REDACTED,21,NET,REDACTED,REDACTED
Gloucester City Council,23UE,Members Support,RC300,Advertising And Publicity,5702,Advertisement 22/05/2015,10/06/2015,402988,1490.02,NET,Local World Ltd,08556P
Gloucester City Council,23UE,Parks Contract Management,LP100,Maint Of Grounds - General,3030,Playground Repairs,10/06/2015,403044,444.92,NET,Enterprise (Aol) Ltd,06695G
Gloucester City Council,23UE,Parks Contract Management,LP100,Maint Of Grounds - General,3030,Various Play Parts,10/06/2015,403043,442.8,NET,Enterprise (Aol) Ltd,06695G
Gloucester City Council,23UE,Youth Grant 2011/12,FP107,Grants,7100C,Youth Grant 2015/16,10/06/2015,403536,2500,NET,Gloucester Blazers Wheelchair Basketball Club,53341W
Gloucester City Council,23UE,Youth Grant 2011/12,FP107,Grants,7100C,Youth Grant 2015/16,10/06/2015,403537,2369,NET,Infobuzz Ltd,4743C
Gloucester City Council,23UE,Blackfriars Catering,LA220,Catering Provisions -Liquor,5111,Drinks,11/06/2015,403376,22.93,NET,Cellar Supplies Cheltenham Ltd,01563L
Gloucester City Council,23UE,Business Grants,GY007,Contract Payments,20,Business Support Grant 2015/16,11/06/2015,403380,479,CAP,Restore Counselling Service,14361D
Gloucester City Council,23UE,Business Transformation & Tech,RT700,Computer Hardware <5000,5420,Various Items,11/06/2015,403348,1064.84,NET,Dell Computers Corporation Ltd,55920C
Gloucester City Council,23UE,Cctv Revenue Budget,FP501,Security Equipment Serv/Repair,3038,CCTV System,11/06/2015,403323,1726.67,NET,Quadrant Security Group Ltd,05109A
Gloucester City Council,23UE,Cemeteries,HC300,Tyres,4014,Various Items,11/06/2015,403372,90.89,NET,A T S Euromaster Ltd,01860B
Gloucester City Council,23UE,Cemeteries,HC300,Tyres,4014,Various Items,11/06/2015,403374,118.49,NET,A T S Euromaster Ltd,01860B
Gloucester City Council,23UE,Cemeteries,HC300,Vocational Training,2970,ICCM Membership 15/16,11/06/2015,403314,90,NET,Institute Of Cemetery & Crematorium M'Ment,01116T
Gloucester City Council,23UE,City Museum Catering,LM202,Catering Provisions -Food,5110,Food,11/06/2015,403435,31.53,NET,Woody'S Fruit & Veg,11798L
Gloucester City Council,23UE,City Museum Catering,LM202,Catering Provisions -Liquor,5111,Drinks,11/06/2015,403390,39.96,NET,Cellar Supplies Cheltenham Ltd,01563L
Gloucester City Council,23UE,City Museum Catering,LM202,Cleaning Materials,3600,Cleaning Materials,11/06/2015,403158,34.13,NET,The Consortium,10365J
Gloucester City Council,23UE,Client Revs & Bens Contract,RT240,Bailiffs Fees,5368,VAT on fees collected,11/06/2015,403502,0,NET,Phoenix Commercial Collections Ltd,13435J
Gloucester City Council,23UE,Client Revs & Bens Contract,RT240,Bailiffs Fees,5368,VAT on fees collected,11/06/2015,403503,0,NET,Phoenix Commercial Collections Ltd,13435J
Gloucester City Council,23UE,Client Revs & Bens Contract,RT240,Bailiffs Fees,5368,VAT on fees collected,11/06/2015,403504,0,NET,Phoenix Commercial Collections Ltd,13435J
Gloucester City Council,23UE,Client Revs & Bens Contract,RT240,Bailiffs Fees,5368,VAT on fees collected,11/06/2015,403505,0,NET,Phoenix Commercial Collections Ltd,13435J
Gloucester City Council,23UE,Contaminated Land,HE301,Basic Pay - Operational Staff,1001,Contaminated Land Work,11/06/2015,403308,1074.64,NET,Bromsgrove District Council,15037G
Gloucester City Council,23UE,Countryside Unit,LP201,Maint Of Grounds - General,3030,Various Items,11/06/2015,403378,499.5,NET,Forest Products Ltd,08155N
Gloucester City Council,23UE,Crematorium,HC200,Memorial Plaques,5053,Plaques,11/06/2015,403371,119,NET,Steel & Stone (York),57204U
Gloucester City Council,23UE,Crematorium,HC200,Oper Leases - Equipment,5029,Church Candle,11/06/2015,403373,54.4,NET,The Candlelight Company,10270X
Gloucester City Council,23UE,Crematorium,HC200,Repair/Maint Of Fixed Plant,3006,Leads & Plugs,11/06/2015,403488,361.66,NET,Facultatieve Technologies Ltd,51210H
Gloucester City Council,23UE,Development Management,PT200,Advertising And Publicity,5702,Online Recruitment Advert,11/06/2015,403369,950,NET,Redactive Publishing Limited,09929L
Gloucester City Council,23UE,Docks Complex - Catering Servs,RB110,Catering Provisions -Food,5110,Food,11/06/2015,403416,32.61,NET,Total Produce Gloucester,12645E
Gloucester City Council,23UE,Docks Complex - Catering Servs,RB110,Catering Provisions -Food,5110,Food,11/06/2015,403417,44.5,NET,Total Produce Gloucester,12645E
Gloucester City Council,23UE,Docks Complex - Catering Servs,RB110,Catering Provisions -Food,5110,Food,11/06/2015,403419,10.83,NET,Total Produce Gloucester,12645E
Gloucester City Council,23UE,Docks Complex - Catering Servs,RB110,Catering Provisions -Food,5110,Food,11/06/2015,403420,28.81,NET,Total Produce Gloucester,12645E
Gloucester City Council,23UE,Docks Complex - Catering Servs,RB110,Catering Provisions -Food,5110,Food,11/06/2015,403421,39.6,NET,Total Produce Gloucester,12645E
Gloucester City Council,23UE,Docks Complex - Catering Servs,RB110,Catering Provisions -Food,5110,Food,11/06/2015,403422,51.84,NET,Total Produce Gloucester,12645E
Gloucester City Council,23UE,Docks Complex - Catering Servs,RB110,Catering Provisions -Food,5110,Food,11/06/2015,403423,8.64,NET,Total Produce Gloucester,12645E
Gloucester City Council,23UE,Docks Complex - Catering Servs,RB110,Catering Provisions -Food,5110,Food,11/06/2015,403424,17.93,NET,Total Produce Gloucester,12645E
Gloucester City Council,23UE,Docks Complex - Catering Servs,RB110,Catering Provisions -Food,5110,Food,11/06/2015,403425,12.36,NET,Total Produce Gloucester,12645E
Gloucester City Council,23UE,Docks Complex - Catering Servs,RB110,Catering Provisions -Food,5110,Food,11/06/2015,403426,15.84,NET,Total Produce Gloucester,12645E
Gloucester City Council,23UE,Docks Complex - Catering Servs,RB110,Catering Provisions -Food,5110,Food,11/06/2015,403427,23.04,NET,Total Produce Gloucester,12645E
Gloucester City Council,23UE,Docks Complex - Catering Servs,RB110,Catering Provisions -Food,5110,Food,11/06/2015,403428,41.89,NET,Total Produce Gloucester,12645E
Gloucester City Council,23UE,Docks Complex - Catering Servs,RB110,Catering Provisions -Food,5110,Food,11/06/2015,403429,21.34,NET,Total Produce Gloucester,12645E
Gloucester City Council,23UE,Docks Complex - Catering Servs,RB110,Catering Provisions -Food,5110,Food,11/06/2015,403430,22.54,NET,Total Produce Gloucester,12645E
Gloucester City Council,23UE,Docks Complex - Catering Servs,RB110,Catering Provisions -Food,5110,Food,11/06/2015,403431,11.64,NET,Total Produce Gloucester,12645E
Gloucester City Council,23UE,Docks Complex - Catering Servs,RB110,Catering Provisions -Food,5110,Food,11/06/2015,403432,39.83,NET,Total Produce Gloucester,12645E
Gloucester City Council,23UE,Docks Complex - Catering Servs,RB110,Catering Provisions -Food,5110,Food,11/06/2015,403433,11,NET,Total Produce Gloucester,12645E
Gloucester City Council,23UE,Docks Complex - Catering Servs,RB110,Catering Provisions -Food,5110,Food,11/06/2015,403434,287.07,NET,3663,55585U
Gloucester City Council,23UE,Docks Complex - Catering Servs,RB110,Catering Provisions -Food,5110,Food,11/06/2015,403489,318.63,NET,3663,55585U
Gloucester City Council,23UE,Docks Complex - Catering Servs,RB110,Catering Provisions -Food,5110,Food,11/06/2015,403490,299.58,NET,3663,55585U
Gloucester City Council,23UE,Docks Complex - Catering Servs,RB110,Catering Provisions -Food,5110,Milk,11/06/2015,403415,8.64,NET,Total Produce Gloucester,12645E
Gloucester City Council,23UE,Docks Complex - Catering Servs,RB110,Catering Provisions -Food,5110,Milk,11/06/2015,403418,8.64,NET,Total Produce Gloucester,12645E
Gloucester City Council,23UE,Docks Complex - Services,RB100,Cleaning Materials,3600,Mop Bucket,11/06/2015,403507,5.12,NET,Core Hygiene Ltd,03885P
Gloucester City Council,23UE,Docks Complex - Services,RB100,Recycling,3631,Recycling & Shredding,11/06/2015,403311,208.7,NET,Printwaste Recycling,57114W
Gloucester City Council,23UE,Docks Complex - Telephones,RB120,Mobile Phones,5409,Samsung Glaxy Ace,11/06/2015,403396,196,NET,Everything Everywhere Ltd (T-Mobile),02334V
Gloucester City Council,23UE,Docks Complex - Telephones,RB120,Telephones And Fax,5410,Various Items,11/06/2015,403349,266.09,NET,Rocom,56066R
Gloucester City Council,23UE,REDACTED,REDACTED,REDACTED,REDACTED,REDACTED,11/06/2015,REDACTED,200,NET,REDACTED,REDACTED
Gloucester City Council,23UE,General Drainage Works,PY241,Contract Payments,20,Lower Car Park - Additional Works,11/06/2015,403317,288.54,CAP,Mr M G Horton T/A H&T Property Maintenance,09210X
Gloucester City Council,23UE,Gloucester Guildhall,LA100,General Repair/Maint Buildings,3000,Painting Studio Corridor,11/06/2015,403487,195.83,NET,REDACTED,REDACTED
Gloucester City Council,23UE,Guildhall Bar And Caf�,LA210,Catering Provisions -Food,5110,Food,11/06/2015,403436,131.03,NET,Woody'S Fruit & Veg,11798L
Gloucester City Council,23UE,Guildhall Bar And Caf�,LA210,Catering Provisions -Food,5110,Foood,11/06/2015,403437,101.41,NET,Woodward Foodservice,10714F
Gloucester City Council,23UE,Guildhall Bar And Caf�,LA210,Catering Provisions -Liquor,5111,Drinks,11/06/2015,403383,1848.71,NET,Cellar Supplies Cheltenham Ltd,01563L
Gloucester City Council,23UE,REDACTED,REDACTED,REDACTED,REDACTED,REDACTED,11/06/2015,REDACTED,850,NET,REDACTED,REDACTED
Gloucester City Council,23UE,REDACTED,REDACTED,REDACTED,REDACTED,REDACTED,11/06/2015,REDACTED,140,NET,REDACTED,REDACTED
Gloucester City Council,23UE,REDACTED,REDACTED,REDACTED,REDACTED,REDACTED,11/06/2015,REDACTED,360,NET,REDACTED,REDACTED
Gloucester City Council,23UE,REDACTED,REDACTED,REDACTED,REDACTED,REDACTED,11/06/2015,REDACTED,72,NET,REDACTED,REDACTED
Gloucester City Council,23UE,REDACTED,REDACTED,REDACTED,REDACTED,REDACTED,11/06/2015,REDACTED,50,NET,REDACTED,REDACTED
Gloucester City Council,23UE,REDACTED,REDACTED,REDACTED,REDACTED,REDACTED,11/06/2015,REDACTED,120,NET,REDACTED,REDACTED
Gloucester City Council,23UE,REDACTED,REDACTED,REDACTED,REDACTED,REDACTED,11/06/2015,REDACTED,160,NET,REDACTED,REDACTED
Gloucester City Council,23UE,REDACTED,REDACTED,REDACTED,REDACTED,REDACTED,11/06/2015,REDACTED,390,NET,REDACTED,REDACTED
Gloucester City Council,23UE,REDACTED,REDACTED,REDACTED,REDACTED,REDACTED,11/06/2015,REDACTED,410,NET,REDACTED,REDACTED
Gloucester City Council,23UE,Homelessness,CH120,Board And Lodging,5515,Accomodation,11/06/2015,403360,69,NET,The Yew Tree Inn,13343R
Gloucester City Council,23UE,Homelessness,CH120,General Repair/Maint Buildings,3000,Full Mesh Chair,11/06/2015,403034,578,NET,Bestbuy Office Chairs,15521W
Gloucester City Council,23UE,Homelessness,CH120,General Repair/Maint Buildings,3000,Full Mesh Chair,11/06/2015,403035,289,NET,Bestbuy Office Chairs,15521W
Gloucester City Council,23UE,Homelessness,CH120,Removal And Storage Fees,5513,storage fees,11/06/2015,403358,112.5,NET,Advanced Removals & Storage Ltd,57142R
Gloucester City Council,23UE,Homelessness,CH120,Rent In Advance,5516,Housing RIA & Deposit,11/06/2015,403613,489.44,NET,Barton & Tredworth Developments Ltd,58165T
Gloucester City Council,23UE,REDACTED,REDACTED,REDACTED,REDACTED,REDACTED,11/06/2015,REDACTED,368.2,NET,REDACTED,REDACTED
Gloucester City Council,23UE,Homelessness Prevention,CH122,Fees For Services Received,5350,Housing RIA & Deposit,11/06/2015,403613,530,NET,Barton & Tredworth Developments Ltd,58165T
Gloucester City Council,23UE,REDACTED,REDACTED,REDACTED,REDACTED,REDACTED,11/06/2015,REDACTED,400,NET,REDACTED,REDACTED
Gloucester City Council,23UE,REDACTED,REDACTED,REDACTED,REDACTED,REDACTED,11/06/2015,REDACTED,1374.13,NET,REDACTED,REDACTED
Gloucester City Council,23UE,Innsworth Lane Sports Pitches,LY079,Contract Payments,20,Inspection Visits,11/06/2015,403332,400,CAP,Gdb Groundcare,15552J
Gloucester City Council,23UE,Investment Property,RB500,Fire Alarm Maintenance,3053,Engineer 24/10/2014,11/06/2015,403352,84.6,NET,Adt Fire & Security Plc,54086D
Gloucester City Council,23UE,Investment Property,RB500,General Repair/Maint Buildings,3000,MTC Contract April 2015,11/06/2015,403483,16030.83,NET,Rf Gardiner Limited,12299B
Gloucester City Council,23UE,Investment Property,RB500,General Repair/Maint Buildings,3000,Work 13/04/2015,11/06/2015,402382,1797.78,NET,Pickerings Europe Ltd,58816U
Gloucester City Council,23UE,Investment Property,RB500,Internal Decs - Communal Areas,3050,Engineer 30/03/2015,11/06/2015,402980,75,NET,Pickerings Europe Ltd,58816U
Gloucester City Council,23UE,Investment Property,RB500,Lift Maintenance,3051,Engineer 09/03/2015,11/06/2015,402981,150,NET,Pickerings Europe Ltd,58816U
Gloucester City Council,23UE,Kings Quarter,RY146,Contract Payments,20,CDM Co-ordinator Services,11/06/2015,403413,750,CAP,Julian Stokes Management Ltd,09046K
Gloucester City Council,23UE,Land Searches,RO300,Subscriptions,5600,Subscriptions,11/06/2015,403506,2122.47,NET,Dx Network Services Ltd,02593S
Gloucester City Council,23UE,National Express,LT105,Materials For Sale,5080,Tickets May 2015,11/06/2015,403501,11778.45,NET,National Express Ltd,31455K
Gloucester City Council,23UE,National Express,LT105,Sale Of Goods And Services,9230,Tickets May 2015,11/06/2015,403501,-1138.16,NET,National Express Ltd,31455K
Gloucester City Council,23UE,Off Street Car Parks,PP110,General Repair/Maint Buildings,3000,KINGS SQUARE,11/06/2015,400860,809.91,NET,Parkeon Ltd,03238G
Gloucester City Council,23UE,Off Street Car Parks,PP110,General Repair/Maint Buildings,3000,Various,11/06/2015,401838,1180,NET,Parkeon Ltd,03238G
Gloucester City Council,23UE,Printing,RP103,Printing,5300,Sales May 2015,11/06/2015,403325,1031.46,NET,Alpha Colour Printers Ltd,00945B
Gloucester City Council,23UE,Registration Of Electors,RS400,Fees For Services Received,5350,Booking Main Hall,11/06/2015,403318,390,NET,Gloucester District Scouting Centre & H.Q,10529C
Gloucester City Council,23UE,Registration Of Electors,RS400,Fees For Services Received,5350,Hire of hall for elections,11/06/2015,403306,59.28,NET,St James C Of E Junior School,10465D
Gloucester City Council,23UE,Registration Of Electors,RS400,Fees For Services Received,5350,Hire of Hall for Elections,11/06/2015,403305,250,NET,Barnwood Pcc,57601D
Gloucester City Council,23UE,Registration Of Electors,RS400,Fees For Services Received,5350,Stewards,11/06/2015,403307,549.4,NET,Gloucester Rugby Football Club,49396D
Gloucester City Council,23UE,Registration Of Electors,RS400,Postages,5400,Response Plus Service,11/06/2015,403399,1031.8,NET,Royal Mail S.Wales & South West,35830S
Gloucester City Council,23UE,Registration Of Electors,RS400,Postages,5400,Response Plus Service,11/06/2015,403400,2934.8,NET,Royal Mail S.Wales & South West,35830S
Gloucester City Council,23UE,Registration Of Electors,RS400,Publications,5060,Election Law,11/06/2015,403304,172,NET,Thomson Reuters,43110M
Gloucester City Council,23UE,Rehousing,CH111,Fees For Services Received,5350,Medical Information,11/06/2015,403357,20.5,NET,Gloucester City Health Centre,02093U
Gloucester City Council,23UE,Retail Market - Landlord,HM300,Maintenance Contract,5352,CCTV System 15/16,11/06/2015,402128,175,NET,R Creed T/A Creed Security,14710A
Gloucester City Council,23UE,Stationery Services,RS150,Printing,5300,Stationary,11/06/2015,403484,8.88,NET,Lyreco Uk Ltd,11746G
Gloucester City Council,23UE,Stationery Services,RS150,Stationery,5302,Stationary,11/06/2015,403485,21.22,NET,Lyreco Uk Ltd,11746G
Gloucester City Council,23UE,Stationery Services,RS150,Stationery,5302,Stationary,11/06/2015,403486,18,NET,Lyreco Uk Ltd,11746G
Gloucester City Council,23UE,The Arbor,HC501,Catering Provisions -Food,5110,Food,11/06/2015,403438,202.98,NET,3663,55585U
Gloucester City Council,23UE,The Arbor,HC501,Catering Provisions -Food,5110,Food,11/06/2015,403439,21.45,NET,Total Produce Gloucester,12645E
Gloucester City Council,23UE,The Arbor,HC501,Catering Provisions -Food,5110,Food,11/06/2015,403440,9.24,NET,Total Produce Gloucester,12645E
Gloucester City Council,23UE,The Arbor,HC501,Catering Provisions -Food,5110,Food,11/06/2015,403441,20.88,NET,Total Produce Gloucester,12645E
Gloucester City Council,23UE,The Arbor,HC501,Catering Provisions -Food,5110,Food,11/06/2015,403442,16.6,NET,Total Produce Gloucester,12645E
Gloucester City Council,23UE,The Arbor,HC501,Catering Provisions -Food,5110,Food,11/06/2015,403443,9.2,NET,Total Produce Gloucester,12645E
Gloucester City Council,23UE,The Arbor,HC501,Catering Provisions -Food,5110,Food,11/06/2015,403444,14.54,NET,Total Produce Gloucester,12645E
Gloucester City Council,23UE,The Arbor,HC501,Catering Provisions -Food,5110,Food,11/06/2015,403445,23.64,NET,Total Produce Gloucester,12645E
Gloucester City Council,23UE,The Arbor,HC501,Catering Provisions -Food,5110,Food,11/06/2015,403446,33.98,NET,Total Produce Gloucester,12645E
Gloucester City Council,23UE,The Arbor,HC501,Catering Provisions -Food,5110,Food,11/06/2015,403447,14.57,NET,Total Produce Gloucester,12645E
Gloucester City Council,23UE,The Arbor,HC501,Catering Provisions -Food,5110,Food,11/06/2015,403448,14.45,NET,Total Produce Gloucester,12645E
Gloucester City Council,23UE,The Arbor,HC501,Catering Provisions -Food,5110,Food,11/06/2015,403450,376.38,NET,3663,55585U
Gloucester City Council,23UE,The Arbor,HC501,Catering Provisions -Food,5110,Food,11/06/2015,403452,30.97,NET,Total Produce Gloucester,12645E
Gloucester City Council,23UE,The Arbor,HC501,Catering Provisions -Food,5110,Food,11/06/2015,403453,17.8,NET,Total Produce Gloucester,12645E
Gloucester City Council,23UE,The Arbor,HC501,Catering Provisions -Food,5110,Food,11/06/2015,403454,4.6,NET,Total Produce Gloucester,12645E
Gloucester City Council,23UE,The Arbor,HC501,Catering Provisions -Food,5110,Food,11/06/2015,403455,37.07,NET,Total Produce Gloucester,12645E
Gloucester City Council,23UE,The Arbor,HC501,Catering Provisions -Food,5110,Food,11/06/2015,403456,40.89,NET,Total Produce Gloucester,12645E
Gloucester City Council,23UE,The Arbor,HC501,Catering Provisions -Food,5110,Food,11/06/2015,403457,15.68,NET,Total Produce Gloucester,12645E
Gloucester City Council,23UE,The Arbor,HC501,Catering Provisions -Food,5110,Food,11/06/2015,403458,297.61,NET,3663,55585U
Gloucester City Council,23UE,The Arbor,HC501,Catering Provisions -Food,5110,Food,11/06/2015,403459,169.75,NET,3663,55585U
Gloucester City Council,23UE,The Arbor,HC501,Catering Provisions -Food,5110,Food,11/06/2015,403462,62.09,NET,Total Produce Gloucester,12645E
Gloucester City Council,23UE,The Arbor,HC501,Catering Provisions -Food,5110,Food,11/06/2015,403463,13.6,NET,Total Produce Gloucester,12645E
Gloucester City Council,23UE,The Arbor,HC501,Catering Provisions -Food,5110,Food,11/06/2015,403464,9.27,NET,Total Produce Gloucester,12645E
Gloucester City Council,23UE,The Arbor,HC501,Catering Provisions -Food,5110,Food,11/06/2015,403465,51.14,NET,Total Produce Gloucester,12645E
Gloucester City Council,23UE,The Arbor,HC501,Catering Provisions -Food,5110,Food,11/06/2015,403466,37.04,NET,Total Produce Gloucester,12645E
Gloucester City Council,23UE,The Arbor,HC501,Catering Provisions -Food,5110,Food,11/06/2015,403469,45.9,NET,Total Produce Gloucester,12645E
Gloucester City Council,23UE,The Arbor,HC501,Catering Provisions -Food,5110,Food,11/06/2015,403471,21.69,NET,Total Produce Gloucester,12645E
Gloucester City Council,23UE,The Arbor,HC501,Catering Provisions -Food,5110,Food,11/06/2015,403472,31.19,NET,Total Produce Gloucester,12645E
Gloucester City Council,23UE,The Arbor,HC501,Catering Provisions -Food,5110,Food,11/06/2015,403473,72.43,NET,Total Produce Gloucester,12645E
Gloucester City Council,23UE,The Arbor,HC501,Catering Provisions -Food,5110,Food,11/06/2015,403474,8.23,NET,Total Produce Gloucester,12645E
Gloucester City Council,23UE,The Arbor,HC501,Catering Provisions -Food,5110,Food,11/06/2015,403475,18.9,NET,Total Produce Gloucester,12645E
Gloucester City Council,23UE,The Arbor,HC501,Catering Provisions -Food,5110,Food,11/06/2015,403476,20.67,NET,Total Produce Gloucester,12645E
Gloucester City Council,23UE,The Arbor,HC501,Catering Provisions -Food,5110,Food,11/06/2015,403477,114.43,NET,Total Produce Gloucester,12645E
Gloucester City Council,23UE,The Arbor,HC501,Catering Provisions -Food,5110,Food,11/06/2015,403478,24.11,NET,Total Produce Gloucester,12645E
Gloucester City Council,23UE,The Arbor,HC501,Catering Provisions -Food,5110,Food,11/06/2015,403479,25.82,NET,Total Produce Gloucester,12645E
Gloucester City Council,23UE,The Arbor,HC501,Catering Provisions -Food,5110,Food,11/06/2015,403480,28.69,NET,Total Produce Gloucester,12645E
Gloucester City Council,23UE,The Arbor,HC501,Catering Provisions -Food,5110,Food,11/06/2015,403481,37.32,NET,Total Produce Gloucester,12645E
Gloucester City Council,23UE,The Arbor,HC501,Catering Provisions -Food,5110,Food,11/06/2015,403482,43.4,NET,Total Produce Gloucester,12645E
Gloucester City Council,23UE,The Arbor,HC501,Catering Provisions -Food,5110,Food,11/06/2015,403491,183.62,NET,3663,55585U
Gloucester City Council,23UE,The Arbor,HC501,Catering Provisions -Food,5110,Food,11/06/2015,403492,303.31,NET,3663,55585U
Gloucester City Council,23UE,The Arbor,HC501,Catering Provisions -Food,5110,Food,11/06/2015,403493,135.24,NET,3663,55585U
Gloucester City Council,23UE,The Arbor,HC501,Catering Provisions -Food,5110,Food,11/06/2015,403494,337,NET,3663,55585U
Gloucester City Council,23UE,The Arbor,HC501,Catering Provisions -Food,5110,Food,11/06/2015,403495,9.99,NET,3663,55585U
Gloucester City Council,23UE,The Arbor,HC501,Catering Provisions -Food,5110,Food,11/06/2015,403496,130,NET,3663,55585U
Gloucester City Council,23UE,The Arbor,HC501,Catering Provisions -Food,5110,Food,11/06/2015,403497,210.38,NET,3663,55585U
Gloucester City Council,23UE,The Arbor,HC501,Catering Provisions -Food,5110,Food,11/06/2015,403498,398.64,NET,3663,55585U
Gloucester City Council,23UE,The Arbor,HC501,Catering Provisions -Food,5110,Food,11/06/2015,403499,348.43,NET,3663,55585U
Gloucester City Council,23UE,The Arbor,HC501,Catering Provisions -Food,5110,Food,11/06/2015,403500,349.37,NET,3663,55585U
Gloucester City Council,23UE,The Arbor,HC501,Catering Provisions -Food,5110,Food,11/06/2015,403468,18.53,NET,Total Produce Gloucester,12645E
Gloucester City Council,23UE,The Arbor,HC501,Catering Provisions -Food,5110,Milk,11/06/2015,403467,4.6,NET,Total Produce Gloucester,12645E
Gloucester City Council,23UE,The Arbor,HC501,Catering Provisions -Food,5110,Food,11/06/2015,403556,3.72,NET,Total Produce Gloucester,12645E
Gloucester City Council,23UE,The Arbor,HC501,Catering Provisions -Liquor,5111,Drinks,11/06/2015,403389,62.44,NET,Cellar Supplies Cheltenham Ltd,01563L
Gloucester City Council,23UE,The Arbor,HC501,Catering Provisions -Liquor,5111,Drinks,11/06/2015,403451,163.91,NET,Cellar Supplies Cheltenham Ltd,01563L
Gloucester City Council,23UE,The Arbor,HC501,Maint Agreements - Buildings,3010,1 Month Machine Warranty,11/06/2015,401854,61.58,NET,Caffeica Ltd,11923J
Gloucester City Council,23UE,The Arbor,HC501,Operational Equipment <5000,5012,Steam Cleaner,11/06/2015,402897,294.56,NET,Machine Mart,56123E
Gloucester City Council,23UE,The Arbor,HC501,Other Minor Supplies Services,5590,Flowers,11/06/2015,403449,34.8,NET,Carols Florist,01274X
Gloucester City Council,23UE,The Arbor,HC501,Other Minor Supplies Services,5590,Flowers,11/06/2015,403460,17.3,NET,Carols Florist,01274X
Gloucester City Council,23UE,The Arbor,HC501,Other Minor Supplies Services,5590,Flowers,11/06/2015,403461,32.4,NET,Carols Florist,01274X
Gloucester City Council,23UE,Tic Theatre Ticket Sales,LT107,Materials For Sale,5080,Ticket Sales 'Carducci' May 2015,11/06/2015,403611,1964,NET,Carducci Music Trust,12940Z
Gloucester City Council,23UE,Tic Theatre Ticket Sales,LT107,Sale Of Goods And Services,9230,Ticket Sales 'Carducci' May 2015,11/06/2015,403611,-81.83,NET,Carducci Music Trust,12940Z
Gloucester City Council,23UE,Tourism Marketing,LT100,Exhibits And Collections,5038,Orient Banner,11/06/2015,403379,166,NET,Access Displays Ltd,05074U
Gloucester City Council,23UE,Tourism Marketing,LT100,Vocational Training,2970,Combines Coms & Sols,11/06/2015,403356,315,NET,Institute Of Customer Service,03321V
Gloucester City Council,23UE,Treasury Management,VR110,Bank Charges And Adjustments,5950,BROKERS FEES,11/06/2015,403602,1342.46,NET,Martin Brokers (Uk) Plc,51416J
Gloucester City Council,23UE,Treasury Management,VR110,Consultants Fees,5349,Treasury Services 15/16,11/06/2015,403313,9500,NET,Capita Treasury Solutions Ltd,05281L
Gloucester City Council,23UE,REDACTED,REDACTED,REDACTED,REDACTED,REDACTED,11/06/2015,REDACTED,1890,CAP,REDACTED,REDACTED
Gloucester City Council,23UE,Utilities,PT502,Electricity Supply,3110,UTILITIES TO JUNE 2015,11/06/2015,403601,15961.09,NET,West Mercia Energy,11669Z
Gloucester City Council,23UE,Vehicles,RS140,Basic Pay - Cleaners,2401,Fuel,11/06/2015,403409,230.12,NET,Allstar Business Solutions Ltd (Arval),06594A
Gloucester City Council,23UE,Vehicles,RS140,Publications,5060,Citizens,11/06/2015,403391,182.2,NET,Ymk Supermarket,55281U
Gloucester City Council,23UE,Westgate Leisure Area S106,LY155,Contract Payments,20,Westgate Leisure Area,11/06/2015,403509,787.5,CAP,Peter Quinn Associates,12891L
Gloucester City Council,23UE,REDACTED,REDACTED,REDACTED,REDACTED,REDACTED,11/06/2015,REDACTED,391,NET,REDACTED,REDACTED
Gloucester City Council,23UE,REDACTED,REDACTED,REDACTED,REDACTED,REDACTED,11/06/2015,REDACTED,208.25,NET,REDACTED,REDACTED
Gloucester City Council,23UE,REDACTED,REDACTED,REDACTED,REDACTED,REDACTED,11/06/2015,REDACTED,165.75,NET,REDACTED,REDACTED
Gloucester City Council,23UE,REDACTED,REDACTED,REDACTED,REDACTED,REDACTED,11/06/2015,REDACTED,96.9,NET,REDACTED,REDACTED
Gloucester City Council,23UE,Client Revs & Bens Contract,RT240,Bailiffs Fees,5368,VAT due on fees,12/06/2015,403361,8.17,NET,Bristow & Sutor,05450M
Gloucester City Council,23UE,Client Revs & Bens Contract,RT240,Bailiffs Fees,5368,VAT due on fees,12/06/2015,403362,0,NET,Bristow & Sutor,05450M
Gloucester City Council,23UE,Client Revs & Bens Contract,RT240,Bailiffs Fees,5368,VAT due on fees,12/06/2015,403375,0,NET,Bristow & Sutor,05450M
Gloucester City Council,23UE,Client Revs & Bens Contract,RT240,Bailiffs Fees,5368,VAT on fees collected,12/06/2015,403334,0,NET,Phoenix Commercial Collections Ltd,13435J
Gloucester City Council,23UE,Client Revs & Bens Contract,RT240,Bailiffs Fees,5368,VAT on fees collected,12/06/2015,403335,0,NET,Phoenix Commercial Collections Ltd,13435J
Gloucester City Council,23UE,Community Safety Projects,FP500,Basic Pay - Temporary Staff,2751,temporary staff,12/06/2015,403217,688.39,NET,Travail Employment Ltd,49371W
Gloucester City Council,23UE,Contaminated Land,HE301,Basic Pay - Operational Staff,1001,Contaminated Land Work,12/06/2015,403312,1244.32,NET,Bromsgrove District Council,15037G
Gloucester City Council,23UE,Council Streetcare Team,HI101,Window Cleaning,3610,Cleaning Viewing Chamber,12/06/2015,403394,130,NET,Poles Apart Window Cleaning,11636R
Gloucester City Council,23UE,Flooding And Drainage,HE306,Maint Of Grounds - General,3030,"Clearance, Daniels Brook",12/06/2015,403385,900,NET,Rdb Safety Boat Ltd,13507J
Gloucester City Council,23UE,Flooding And Drainage,HE306,Maint Of Grounds - General,3030,"Clearance, Hempsted Meadows",12/06/2015,403384,180,NET,Rdb Safety Boat Ltd,13507J
Gloucester City Council,23UE,REDACTED,REDACTED,REDACTED,REDACTED,REDACTED,12/06/2015,REDACTED,1096.5,CAP,REDACTED,REDACTED
Gloucester City Council,23UE,Glos City Eaep,LM250,Fees For Services Received,5350,Archive Enhancement,12/06/2015,402587,5408,NET,Cotswold Archaeology Ltd,09180E
Gloucester City Council,23UE,Investment Property,RB500,Fire Alarm Maintenance,3053,Engineer 09/05/2015,12/06/2015,402627,209.5,NET,Adt Fire & Security Plc,54086D
Gloucester City Council,23UE,Off Street Car Parks,PP110,Rents,3200,Kings Sq Car Parks,12/06/2015,403163,46250,NET,Colliers International,15540S
Gloucester City Council,23UE,Parks Contract Management,LP100,Maint Of Grounds - General,3030,Replacement Net,12/06/2015,402844,257.48,NET,Certex Uk Ltd,52192Y
Gloucester City Council,23UE,Retail Market - Landlord,HM300,Operational Equipment <5000,5012,CREDITED ON GLO/241649,12/06/2015,402796,33.67,NET,City Electrical Factors,09325C
Gloucester City Council,23UE,Retail Market - Landlord,HM300,Operational Equipment <5000,5012,HARDWARE,12/06/2015,403694,21.49,NET,City Electrical Factors,09325C
Gloucester City Council,23UE,Retail Market - Landlord,HM300,Operational Equipment <5000,5012,Recyling Contribution Charge,12/06/2015,403397,9.21,NET,City Electrical Factors,09325C
Gloucester City Council,23UE,Retail Market - Landlord,HM300,Operational Equipment <5000,5012,Rental of Compactor,12/06/2015,401853,280.56,NET,System Rental Uk Ltd,03239E
Gloucester City Council,23UE,Retail Market - Landlord,HM300,Operational Equipment <5000,5012,Rental of Compactor,12/06/2015,403324,280.56,NET,System Rental Uk Ltd,03239E
Gloucester City Council,23UE,Safer Stronger Communities,FP841,Other Minor Supplies Services,5590,Anti Climb Security Panels,12/06/2015,403402,599.5,NET,Show Services Group Ltd,56329F
Gloucester City Council,23UE,Shopmobility,PE200,Cleaning Materials,3600,Medical Waste Services,12/06/2015,403184,7.11,NET,Ocs Group Uk Limited T/A Cannon,06506A
Gloucester City Council,23UE,Theatre Tokens,LT106,Materials For Sale,5080,Tickets May 2015,12/06/2015,403403,80,NET,Society Of London Theatre,05656Z
Gloucester City Council,23UE,Theatre Tokens,LT106,Sale Of Goods And Services,9230,Tickets May 2015,12/06/2015,403403,-4,NET,Society Of London Theatre,05656Z
Gloucester City Council,23UE,Ugly Structures,GY010,Contract Payments,20,Link Bridge Sample,12/06/2015,403370,1685.63,CAP,Norman And Underwood Ltd,15731G
Gloucester City Council,23UE,REDACTED,REDACTED,REDACTED,REDACTED,REDACTED,12/06/2015,REDACTED,1075.67,NET,REDACTED,REDACTED
Gloucester City Council,23UE,Armscroft Park Flood Mit S106,LY153,Contract Payments,20,Works to Tree Guards,15/06/2015,403170,350,CAP,Rj Contracting (Environmental) Ltd,07429H
Gloucester City Council,23UE,Blackfriars,LA609,Hire Of Equipment,5020,TABLE,15/06/2015,403747,17,NET,Valley Furniture Hire Ltd,08324P
Gloucester City Council,23UE,Building Control,PT400,Basic Pay - Temporary Staff,2751,Hours w/e 07/06/2015,15/06/2015,403386,1593.56,NET,Andrew Gough Consulting Ltd,15589J
Gloucester City Council,23UE,Cemeteries,HC300,Basic Pay - Temporary Staff,2751,temporary staff,15/06/2015,403160,410.55,NET,Premiere Employment Group Ltd,55468Z
Gloucester City Council,23UE,Cemeteries,HC300,Maint Of Grounds - General,3030,CLOTHING,15/06/2015,403721,33.33,NET,Countrywide Farmers,55687J
Gloucester City Council,23UE,Cemeteries,HC300,Maint Of Grounds - General,3030,STAKES,15/06/2015,403725,217.72,NET,Millington & Ramstedt Ltd,29815S
Gloucester City Council,23UE,Cemeteries,HC300,Operational Materials,5070,Sweeping Apr & May 15,15/06/2015,402993,192,NET,Enterprise (Aol) Ltd,06695G
Gloucester City Council,23UE,Cemeteries,HC300,Other Minor Supplies Services,5590,STAKES,15/06/2015,403725,286.7,NET,Millington & Ramstedt Ltd,29815S
Gloucester City Council,23UE,Cemeteries,HC300,Routine R And M - Vehicles,4011,SERVICE,15/06/2015,403730,96.25,NET,Garden Machinery Gloucester,55641K
Gloucester City Council,23UE,City Museum Catering,LM202,Catering Provisions -Food,5110,Coffee Beans,15/06/2015,402989,95.45,NET,James Gourmet Coffee Co.,55049A
Gloucester City Council,23UE,City Museum Catering,LM202,Catering Provisions -Food,5110,Milk,15/06/2015,403227,6.9,NET,Total Produce Gloucester,12645E
Gloucester City Council,23UE,City Museum Catering,LM202,Operational Equipment <5000,5012,May-15,15/06/2015,403731,135,NET,La Spaziale Uk Ltd,11823P
Gloucester City Council,23UE,Client Revs & Bens Contract,RT240,Bailiffs Fees,5368,CTAX FEES,15/06/2015,403734,21.12,NET,Bristow & Sutor,05450M
Gloucester City Council,23UE,Client Revs & Bens Contract,RT240,Bailiffs Fees,5368,VAT ONLY INVOICE,15/06/2015,403733,0,NET,Bristow & Sutor,05450M
Gloucester City Council,23UE,Coll Fund Revenue Account,ZC100,Nndr Central Share,7474,brr pooling payment BRR3,15/06/2015,403833,474007,NET,Gloucestershire County Council,18650D
Gloucester City Council,23UE,Coll Fund Revenue Account,ZC100,Nndr Tariff,7473,BRR POOLING PAYMENT BRR3,15/06/2015,403838,1485345,NET,Stroud District Council,74737T
Gloucester City Council,23UE,Council Streetcare Team,HI101,Maint Of Grounds - General,3030,GLEVUM WAY PARK,15/06/2015,403762,963,NET,Greenfields Garden Services Ltd,48130G
Gloucester City Council,23UE,Countryside Unit,LP201,Clothing,5200,CLOTHING,15/06/2015,403721,6.24,NET,Countrywide Farmers,55687J
Gloucester City Council,23UE,Crematorium,HC200,Cleaning Materials,3600,Fleece Jackets,15/06/2015,403364,62.85,NET,Safpro Industrial Supply Co,39190W
Gloucester City Council,23UE,Crematorium,HC200,Clothing,5200,Fleece Jackets,15/06/2015,403364,22.5,NET,Safpro Industrial Supply Co,39190W
Gloucester City Council,23UE,Crematorium,HC200,Maint Of Grounds - General,3030,STAKES,15/06/2015,403725,118.27,NET,Millington & Ramstedt Ltd,29815S
Gloucester City Council,23UE,Crematorium,HC200,"Seeds, Trees, Plants, Shrubs",3028,PLANTS,15/06/2015,403732,372.8,NET,Genus Softworks Ltd,12320N
Gloucester City Council,23UE,REDACTED,REDACTED,REDACTED,REDACTED,REDACTED,15/06/2015,REDACTED,137,NET,REDACTED,REDACTED
Gloucester City Council,23UE,Disabled Facilities Grants,CY013,Disabled Facility Grants,74,Disabled Facilities Grant DFG MDF5149,15/06/2015,403775,4130,CAP,Stroud Stairlifts,10315A
Gloucester City Council,23UE,Docks Complex - Services,RB100,Catering Provisions -Food,5110,Buffet Menu 21/05/2015,15/06/2015,402983,131.52,NET,Janes Pantry,24500W
Gloucester City Council,23UE,Docks Complex - Services,RB100,Fees For Services Received,5350,OXSTALLS,15/06/2015,403720,500,NET,Engineering Services Consultancy Ltd,13039X
Gloucester City Council,23UE,Emergency Out Of Hours Calls,RB301,Fees For Services Received,5350,Call Usage May 2015,15/06/2015,403366,128.34,NET,Office Response,09439K
Gloucester City Council,23UE,Employers Pension Contribs,ZR355,Pension Contribs Incl Backf,2901,PENSION DEFICIT FOR GCC,15/06/2015,403770,217666.66,NET,Gloucestershire County Council,10614L
Gloucester City Council,23UE,Flooding And Drainage,HE306,Maint Of Grounds - General,3030,Works to Whaddon Brook,15/06/2015,403171,1700,NET,Rj Contracting (Environmental) Ltd,07429H
Gloucester City Council,23UE,REDACTED,REDACTED,REDACTED,REDACTED,REDACTED,15/06/2015,REDACTED,200,NET,REDACTED,REDACTED
Gloucester City Council,23UE,REDACTED,REDACTED,REDACTED,REDACTED,REDACTED,15/06/2015,REDACTED,560.5,CAP,REDACTED,REDACTED
Gloucester City Council,23UE,Grants To Voluntary Sector,FG100,Members Allocation Fund,7100F,THE RICHMONDS,15/06/2015,403748,335,NET,Greenfields Garden Services Ltd,48130G
Gloucester City Council,23UE,Green Transport Policy,PJ130,Electric Car Charge,4030,Smart for two coupe,15/06/2015,403355,287.35,NET,Daimler Fleet Management,07828N
Gloucester City Council,23UE,REDACTED,REDACTED,REDACTED,REDACTED,REDACTED,15/06/2015,REDACTED,120,NET,REDACTED,REDACTED
Gloucester City Council,23UE,REDACTED,REDACTED,REDACTED,REDACTED,REDACTED,15/06/2015,REDACTED,90,NET,REDACTED,REDACTED
Gloucester City Council,23UE,REDACTED,REDACTED,REDACTED,REDACTED,REDACTED,15/06/2015,REDACTED,88.38,NET,REDACTED,REDACTED
Gloucester City Council,23UE,REDACTED,REDACTED,REDACTED,REDACTED,REDACTED,15/06/2015,REDACTED,132.85,NET,REDACTED,REDACTED
Gloucester City Council,23UE,Guildhall Events,LA200,Advertising And Publicity,5702,UNDERGROUND FESTIVAL,15/06/2015,403737,1000,NET,Sonic Media Group,15761X
Gloucester City Council,23UE,Hempsted Market/Car Boot,HM234,Hire Of Equipment,5020,Portable Office June 2015,15/06/2015,403331,254.19,NET,Portable Offices (Hire ) Ltd,06286R
Gloucester City Council,23UE,REDACTED,REDACTED,REDACTED,REDACTED,REDACTED,15/06/2015,REDACTED,400,NET,REDACTED,REDACTED
Gloucester City Council,23UE,Homelessness,CH120,Removal And Storage Fees,5513,storage fees,15/06/2015,403728,209.25,NET,Advanced Removals & Storage Ltd,57142R
Gloucester City Council,23UE,Homelessness Prevention,CH122,Fees For Services Received,5350,Housing Deposit,15/06/2015,403769,400,NET,Selina'S Lettings,13035F
Gloucester City Council,23UE,Homelessness Prevention,CH122,Fees For Services Received,5350,MEDICAL REPORTS,15/06/2015,403742,35,NET,Now Medical,03468L
Gloucester City Council,23UE,Human Resources,EH100,Fees For Services Received,5350,JOBSCREEN,15/06/2015,403729,120,NET,Industrial Medical & Safety Services Ltd,10668L
Gloucester City Council,23UE,Investment Property,RB500,Cctv Servicing & Maint,3016,Charges July - Oct 2015,15/06/2015,402817,306.34,NET,Chubb Fire & Security Ltd,54582K
Gloucester City Council,23UE,Investment Property,RB500,Fire Alarm Maintenance,3053,Engineer 06/05/2015,15/06/2015,403351,7595,NET,Adt Fire & Security Plc,54086D
Gloucester City Council,23UE,Investment Property,RB500,Repair/Maint Of Fixed Plant,3006,CITY MUSEUM,15/06/2015,403722,145.5,NET,Adt Fire & Security Plc,54086D
Gloucester City Council,23UE,Investment Property,RB500,Service Charges,3020,Agricutural Drainage Rates - Hempsted,15/06/2015,403272,87.36,NET,Lower Severn Drainage Board,04918R
Gloucester City Council,23UE,Land Searches,RO300,Fees For Services Received,5350,LAND CHARGES 65 20 each,15/06/2015,398574,1300,NET,Gloucestershire County Council,18650D
Gloucester City Council,23UE,Licences,HE510,Other Minor Supplies Services,5590,Coat,15/06/2015,399844,35.8,NET,Safpro Industrial Supply Co,39190W
Gloucester City Council,23UE,Off Street Car Parks,PP110,Rents,3200,Rent 25/03/15 - 23/06/15,15/06/2015,399299,600,NET,Boots The Chemist,04540V
Gloucester City Council,23UE,Off Street Car Parks,PP110,Rents,3200,Rent Jun - Sep 2015,15/06/2015,403022,125,NET,Workman Llp,11021M
Gloucester City Council,23UE,Off Street Car Parks,PP110,Service Charges,3020,Rent Jun - Sep 2015,15/06/2015,403022,245.1,NET,Workman Llp,11021M
Gloucester City Council,23UE,Off Street Car Parks,PP110,Service Charges,3020,Rent - Pedestrian Access,15/06/2015,403023,908.78,NET,Workman Llp,11021M
Gloucester City Council,23UE,Parks Contract Management,LP100,Maint Of Grounds - General,3030,GLEVUM WAY PARK,15/06/2015,403763,644,NET,Greenfields Garden Services Ltd,48130G
Gloucester City Council,23UE,Parks Contract Management,LP100,Maint Of Grounds - General,3030,Matson Park Play Area,15/06/2015,403346,100,NET,Greenfields Garden Services Ltd,48130G
Gloucester City Council,23UE,Postal Services,RS120,Postages,5400,Post 15/05 - 28/05 2015,15/06/2015,403412,1045.82,NET,Royal Mail S.Wales & South West,35830S
Gloucester City Council,23UE,Public Health,HD200,Other Minor Supplies Services,5590,art supplies,15/06/2015,403756,802.45,NET,Jackson Arts Supplies Limited,15113S
Gloucester City Council,23UE,Registration Of Electors,RS400,Fees For Services Received,5350,ROOM HIRE 07/05,15/06/2015,403739,108.33,NET,Wotton Hall Club,08356R
Gloucester City Council,23UE,Registration Of Electors,RS400,Fees For Services Received,5350,ROOM HIRE 07/05,15/06/2015,403751,210,NET,Lonsdale Road Methodist Church,04793L
Gloucester City Council,23UE,Registration Of Electors,RS400,Fees For Services Received,5350,ROOM HIRE 07/05,15/06/2015,403752,104,NET,Quedgeley Village Hall,00736N
Gloucester City Council,23UE,Registration Of Electors,RS400,Fees For Services Received,5350,ROOM HIRE 07/05,15/06/2015,403753,320,NET,Abbeydale Community Association,50263V
Gloucester City Council,23UE,Registration Of Electors,RS400,Fees For Services Received,5350,ROOM HIRE 07/05,15/06/2015,403754,250,NET,Together In Matson,53760RV
Gloucester City Council,23UE,Registration Of Electors,RS400,Printing,5300,IER Mailings,15/06/2015,403168,13.68,NET,Alpha Response Print & Mail Ltd,03029U
Gloucester City Council,23UE,Rehousing,CH111,Fees For Services Received,5350,MEDICAL REPORTS,15/06/2015,403742,125,NET,Now Medical,03468L
Gloucester City Council,23UE,Retail Market - Landlord,HM300,Cleaning / Domestic Equipment,5011,Apr-15,15/06/2015,403749,18.93,NET,Initial Washroom Solutions,06143R
Gloucester City Council,23UE,Retail Market - Landlord,HM300,General Repair/Maint Buildings,3000,Engineer 07/05/2015,15/06/2015,403014,135,NET,Adt Fire & Security Plc,54086D
Gloucester City Council,23UE,Retail Market - Landlord,HM300,Maint Agreements - Buildings,3010,MAINT 07/04/15,15/06/2015,400929,283,NET,Mitchells (Gloucester) Ltd,30160U
Gloucester City Council,23UE,Rugby World Cup,LT450,Fees For Services Received,5350,ALL BLUES RFC,15/06/2015,403765,950,NET,Anderson Civil Engineering Uk Ltd,09083D
Gloucester City Council,23UE,REDACTED,REDACTED,REDACTED,REDACTED,REDACTED,15/06/2015,REDACTED,120,NET,REDACTED,REDACTED
Gloucester City Council,23UE,REDACTED,REDACTED,REDACTED,REDACTED,REDACTED,15/06/2015,REDACTED,200,NET,REDACTED,REDACTED
Gloucester City Council,23UE,Safe At Home Grants,CY012,Other Capital Grants,89,Safe at Home Contribution,15/06/2015,403029,4934,CAP,Gloucestershire County Council,18650D
Gloucester City Council,23UE,Stationery Services,RS150,Stationery,5302,stationery,15/06/2015,403724,14.77,NET,Lyreco Uk Ltd,11746G
Gloucester City Council,23UE,Stationery Services,RS150,Stationery,5302,stationery,15/06/2015,403726,91.87,NET,Lyreco Uk Ltd,11746G
Gloucester City Council,23UE,Stationery Services,RS150,Stationery,5302,stationery,15/06/2015,403727,16.49,NET,Lyreco Uk Ltd,11746G
Gloucester City Council,23UE,Blackfriars,LA609,Security Services Fees,5351,May-15,16/06/2015,403365,187.5,NET,Nsgl Ltd,12539E
Gloucester City Council,23UE,Cemeteries,HC300,Basic Pay - Temporary Staff,2751,temporary staff,16/06/2015,403368,439.88,NET,Premiere Employment Group Ltd,55468Z
Gloucester City Council,23UE,Crematorium,HC200,Repair/Maint Of Fixed Plant,3006,Hoover Bags,16/06/2015,402996,13.86,NET,Gillman & Son (Electrical) Ltd,21632RV
Gloucester City Council,23UE,Disabled Facilities Grants,CY013,Disabled Facility Grants,74,DFG MDF5086 interim 1,16/06/2015,403910,20000,CAP,Longlevens Building & Roofing Ltd,02837L
Gloucester City Council,23UE,Docks Complex - Castlemeads Cp,RB210,Contracted Services,6970,GC Fixed Overhead,16/06/2015,403342,432.02,NET,Apcoa Parking (Uk) Ltd,09954M
Gloucester City Council,23UE,Docks Complex - Castlemeads Cp,RB210,Contracted Services,6970,GC P&D and Head Cams,16/06/2015,403341,2096.19,NET,Apcoa Parking (Uk) Ltd,09954M
Gloucester City Council,23UE,Docks Complex - Castlemeads Cp,RB210,Contracted Services,6970,GC Vehicles,16/06/2015,403338,454.26,NET,Apcoa Parking (Uk) Ltd,09954M
Gloucester City Council,23UE,Docks Complex - Services,RB100,Lift Maintenance,3051,Works 30/01/2015,16/06/2015,403874,577.6,NET,Pickerings Europe Ltd,58816U
Gloucester City Council,23UE,Docks Complex - Telephones,RB120,Mobile Phones,5409,PHONE,16/06/2015,403738,98,NET,Everything Everywhere Ltd (T-Mobile),02334V
Gloucester City Council,23UE,Electrical Investigatory Works,RY142,Contract Payments,20,Domestic Water Contract,16/06/2015,403381,3146.25,CAP,Kingfisher Environmental Services Ltd,04738V
Gloucester City Council,23UE,Gloucester Guildhall,LA100,Maintenance Of Equipment,5030,Nylon Locking Nut,16/06/2015,402979,11.64,NET,Cpc,52980M
Gloucester City Council,23UE,Guildhall Events,LA200,Security Services Fees,5351,May-15,16/06/2015,403365,831.5,NET,Nsgl Ltd,12539E
Gloucester City Council,23UE,Guildhall Sound Desks,LY059,Contract Payments,20,AUDIO GOODS,16/06/2015,403743,255.89,CAP,Canford Audio Plc,07875D
Gloucester City Council,23UE,Guildhall Sound Desks,LY059,Purchase Cost -Land,1,AUDIO GOODS,16/06/2015,403743,33.44,CAP,Canford Audio Plc,07875D
Gloucester City Council,23UE,Homelessness,CH120,Basic Pay - Temporary Staff,2751,temporary staff,16/06/2015,399862,703,NET,Building Recruitment Company Ltd,55385E
Gloucester City Council,23UE,REDACTED,REDACTED,REDACTED,REDACTED,REDACTED,16/06/2015,REDACTED,272.72,NET,REDACTED,REDACTED
Gloucester City Council,23UE,Homelessness Prevention,CH122,Basic Pay - Temporary Staff,2751,temporary staff,16/06/2015,403401,697.58,NET,Building Recruitment Company Ltd,55385E
Gloucester City Council,23UE,REDACTED,REDACTED,REDACTED,REDACTED,REDACTED,16/06/2015,REDACTED,296,NET,REDACTED,REDACTED
Gloucester City Council,23UE,Investment Property,RB500,Management Fees,6001,Services - GL1,16/06/2015,403860,600,NET,Gea Consulting Ltd,15500E
Gloucester City Council,23UE,Off Street Car Parks,PP110,Contracted Services,6970,GC Fixed Overhead,16/06/2015,403342,341.46,NET,Apcoa Parking (Uk) Ltd,09954M
Gloucester City Council,23UE,Off Street Car Parks,PP110,Contracted Services,6970,GC Other Items,16/06/2015,403339,11373.28,NET,Apcoa Parking (Uk) Ltd,09954M
Gloucester City Council,23UE,Off Street Car Parks,PP110,Contracted Services,6970,GC Variable Enforcement,16/06/2015,403340,4853.84,NET,Apcoa Parking (Uk) Ltd,09954M
Gloucester City Council,23UE,The Arbor,HC501,Catering Provisions -Food,5110,Food,16/06/2015,401374,191.92,NET,3663,55585U
Gloucester City Council,23UE,The Arbor,HC501,Maint Agreements - Buildings,3010,Monthly Machine Warranty,16/06/2015,403007,61.58,NET,Caffeica Ltd,11923J
Gloucester City Council,23UE,Vehicles,RS140,Fuel,4012,fuel,16/06/2015,403755,153.41,NET,Allstar Business Solutions Ltd (Arval),06594A
Gloucester City Council,23UE,Blackbridge Athletics Track,LY134,Contract Payments,20,Blackbridge Athletics Track Retention,17/06/2015,403046,7681.59,CAP,Charles Lawrence Sports Surfaces Ltd,13288X
Gloucester City Council,23UE,REDACTED,REDACTED,REDACTED,REDACTED,REDACTED,17/06/2015,REDACTED,168,NET,REDACTED,REDACTED
Gloucester City Council,23UE,Client Revs & Bens Contract,RT240,Computer Software Maintenance,5427,IT Costs 2015,17/06/2015,402359,195.65,NET,Civica Uk Ltd,10841X
Gloucester City Council,23UE,Docks Complex - Services,RB100,Cleaning Materials,3600,Cleaning Materials,17/06/2015,403020,118.32,NET,Core Hygiene Ltd,03885P
Gloucester City Council,23UE,Docks Complex - Services,RB100,Cleaning Materials,3600,Cleaning Materials,17/06/2015,403350,136.64,NET,Core Hygiene Ltd,03885P
Gloucester City Council,23UE,Financial Services,RT200,Fees For Services Received,5350,MEA Licence Renewal,17/06/2015,402160,90003.38,NET,Civica Uk Ltd,10841X
Gloucester City Council,23UE,Gloucester Guildhall,LA100,General Repair/Maint Buildings,3000,painting studio corridor,17/06/2015,403945,231.25,NET,REDACTED,REDACTED
Gloucester City Council,23UE,Grants To Voluntary Sector,FG100,Grants,7100C,Room hire & refreshments for VCS event,17/06/2015,403946,96,NET,Gavca Training,12710V
Gloucester City Council,23UE,Guildhall Bar And Caf�,LA210,Catering Provisions -Food,5110,food,17/06/2015,403929,71.6,NET,Janes Pantry,24500W
Gloucester City Council,23UE,Guildhall Events,LA200,Advertising And Publicity,5702,Advertisement 24/04/2015,17/06/2015,402027,400,NET,Local World Ltd,08556P
Gloucester City Council,23UE,REDACTED,REDACTED,REDACTED,REDACTED,REDACTED,17/06/2015,REDACTED,2000,NET,REDACTED,REDACTED
Gloucester City Council,23UE,REDACTED,REDACTED,REDACTED,REDACTED,REDACTED,17/06/2015,REDACTED,3500,NET,REDACTED,REDACTED
Gloucester City Council,23UE,Guildhall Events,LA200,Fees For Services Received,5350,training for rehearsal roll-out,17/06/2015,403944,275,NET,Ffg,15546D
Gloucester City Council,23UE,REDACTED,REDACTED,REDACTED,REDACTED,REDACTED,17/06/2015,REDACTED,368.2,NET,REDACTED,REDACTED
Gloucester City Council,23UE,Registration Of Electors,RS400,Stationery,5302,response envelopes,17/06/2015,403943,150,NET,Alpha Response Print & Mail Ltd,03029U
Gloucester City Council,23UE,Rehousing,CH111,Vocational Training,2970,Children&Young People with Disabilities,17/06/2015,403933,160,NET,Gloucestershire County Council,18650D
Gloucester City Council,23UE,Safer Stronger Communities,FP841,Other Minor Supplies Services,5590,course fees,17/06/2015,403948,1750,NET,Apt Ltd,04741G
Gloucester City Council,23UE,Safer Stronger Communities,FP841,Other Minor Supplies Services,5590,packed lunches 9th & 10th June,17/06/2015,403942,157.5,NET,Hedleys,58915R
Gloucester City Council,23UE,The Arbor,HC501,Catering Provisions -Food,5110,food,17/06/2015,403930,105.42,NET,Janes Pantry,24500W
Gloucester City Council,23UE,REDACTED,REDACTED,REDACTED,REDACTED,REDACTED,17/06/2015,REDACTED,304,NET,REDACTED,REDACTED
Gloucester City Council,23UE,REDACTED,REDACTED,REDACTED,REDACTED,REDACTED,17/06/2015,REDACTED,-25.33,NET,REDACTED,REDACTED
Gloucester City Council,23UE,Townscape Heritage Initiative,LY145,Contract Payments,20,St Mary De Crypt phase 1 boundary wall,17/06/2015,403947,5760,CAP,Bourne Masonry,15013X
Gloucester City Council,23UE,REDACTED,REDACTED,REDACTED,REDACTED,REDACTED,18/06/2015,REDACTED,500,CAP,REDACTED,REDACTED
Gloucester City Council,23UE,Aspire Admin Charges,LC105,Contracted Services,6970,Monthly Charge June 2015,18/06/2015,403869,54792.25,NET,Aspire Sports & Cultural Trust,08135V
Gloucester City Council,23UE,Aspire Admin Charges,LC105,Security Services Fees,5351,Services July 2015,18/06/2015,403884,181.28,NET,G4s Cash Solutions (Uk) Ltd,04290V
Gloucester City Council,23UE,Building Control,PT400,Basic Pay - Temporary Staff,2751,Hours w/e 14/06/2015,18/06/2015,403864,1589.78,NET,Andrew Gough Consulting Ltd,15589J
Gloucester City Council,23UE,Building Control,PT400,Basic Pay - Temporary Staff,2751,temporary staff,18/06/2015,403169,1664.05,NET,The Oyster Partnership Limited,14900T
Gloucester City Council,23UE,Building Control,PT400,Basic Pay - Temporary Staff,2751,temporary staff,18/06/2015,403846,1656.8,NET,The Oyster Partnership Limited,14900T
Gloucester City Council,23UE,Building Control,PT400,Basic Pay - Temporary Staff,2751,temporary staff,18/06/2015,403848,1409.45,NET,The Oyster Partnership Limited,14900T
Gloucester City Council,23UE,Business Transformation & Tech,RT700,Computer Software Maintenance,5427,Annual Hosting,18/06/2015,403859,11760,NET,Govdelivery,13943H
Gloucester City Council,23UE,Cemeteries,HC300,Maint Of Grounds - General,3030,Tress,18/06/2015,403858,570,NET,Jpu Services Ltd,11056K
Gloucester City Council,23UE,Cemeteries,HC300,Other Minor Supplies Services,5590,Various Items,18/06/2015,403843,436,NET,Allstone Sand & Gravel Aggregates Ltd,00940M
Gloucester City Council,23UE,Cemeteries,HC300,Trade Refuse Tipping Fees,6297,Various Items,18/06/2015,403882,365,NET,Allstone Sand & Gravel Aggregates Ltd,00940M
Gloucester City Council,23UE,Cemeteries,HC300,Trade Refuse Tipping Fees,6297,Various Items,18/06/2015,403883,625,NET,Allstone Sand & Gravel Aggregates Ltd,00940M
Gloucester City Council,23UE,Cemeteries,HC300,Trade Refuse Tipping Fees,6297,Weekly Hire of Dumper,18/06/2015,403844,475,NET,Allstone Sand & Gravel Aggregates Ltd,00940M
Gloucester City Council,23UE,Cems/Crems Admin,HC100,Security Services Fees,5351,cash processing MAY15,18/06/2015,403935,21.17,NET,G4s Cash Solutions (Uk) Ltd,04290V
Gloucester City Council,23UE,Cems/Crems Admin,HC100,Security Services Fees,5351,Services July 2015,18/06/2015,403884,103.33,NET,G4s Cash Solutions (Uk) Ltd,04290V
Gloucester City Council,23UE,City Museum And Art Gallery,LM200,Exhibits And Collections,5038,Screws & Nails,18/06/2015,403903,134.25,NET,Millington & Ramstedt Ltd,29815S
Gloucester City Council,23UE,City Museum And Art Gallery,LM200,Security Services Fees,5351,Services July 2015,18/06/2015,403884,90.64,NET,G4s Cash Solutions (Uk) Ltd,04290V
Gloucester City Council,23UE,Community Safety Projects,FP500,Basic Pay - Temporary Staff,2751,temporary staff,18/06/2015,403873,434.06,NET,Travail Employment Ltd,49371W
Gloucester City Council,23UE,Contact Centre,RB300,Fees For Services Received,5350,Chairs & Carpet,18/06/2015,403856,295,NET,Clean Able,15757M
Gloucester City Council,23UE,Corporate Reporting /Financing,RC504,Fees For Services Received,5350,Kiddivouchers June 2015,18/06/2015,403840,25.51,NET,Wider Plan Ltd ( Formerly Kiddivouchers),07893B
Gloucester City Council,23UE,Countryside Unit,LP201,Basic Pay - Cleaners,2401,Various Items,18/06/2015,403776,29.01,NET,Tim Fry Landrovers,50886Z
Gloucester City Council,23UE,Countryside Unit,LP201,Major R And M - Vehicles,4010,Various Items,18/06/2015,403776,540.98,NET,Tim Fry Landrovers,50886Z
Gloucester City Council,23UE,Countryside Unit,LP201,Routine R And M - Vehicles,4011,Various Items,18/06/2015,403776,387.93,NET,Tim Fry Landrovers,50886Z
Gloucester City Council,23UE,Development Management,PT200,Advertising And Publicity,5702,Advertisement 04/06/2015,18/06/2015,403834,204.51,NET,Local World Ltd,08556P
Gloucester City Council,23UE,Director Serv & Neighbourhoods,ME104,Consultants Fees,5349,Consultancy Services April 2015,18/06/2015,403855,379.5,NET,Hc Human Resource Consulting Ltd,15576U
Gloucester City Council,23UE,Docks Complex - Services,RB100,Security Services Fees,5351,cash processing MAY15,18/06/2015,403935,3.53,NET,G4s Cash Solutions (Uk) Ltd,04290V
Gloucester City Council,23UE,Docks Complex - Services,RB100,Security Services Fees,5351,Services July 2015,18/06/2015,403884,270.81,NET,G4s Cash Solutions (Uk) Ltd,04290V
Gloucester City Council,23UE,Docks Complex - Telephones,RB120,Mobile Phones,5409,Samsung Galaxy Ace 4,18/06/2015,403862,98,NET,Everything Everywhere Ltd (T-Mobile),02334V
Gloucester City Council,23UE,Docks Complex - Telephones,RB120,Mobile Phones,5409,Samsung Galaxy Ace 4,18/06/2015,403863,98,NET,Everything Everywhere Ltd (T-Mobile),02334V
Gloucester City Council,23UE,Financial Services,RT200,Fees For Services Received,5350,Consultancy Fees 2015/16,18/06/2015,403866,9000,NET,Zurich Management Services Limited,20229U
Gloucester City Council,23UE,Folk Museum,LM210,Security Services Fees,5351,Services July 2015,18/06/2015,403884,90.64,NET,G4s Cash Solutions (Uk) Ltd,04290V
Gloucester City Council,23UE,General Drainage Works,PY241,Contract Payments,20,TEWKESBURY RD,18/06/2015,398302,1040,CAP,Three Counties Drain Service,44033V
Gloucester City Council,23UE,Gloucester Guildhall,LA100,Security Services Fees,5351,Services July 2015,18/06/2015,403884,90.64,NET,G4s Cash Solutions (Uk) Ltd,04290V
Gloucester City Council,23UE,REDACTED,REDACTED,REDACTED,REDACTED,REDACTED,18/06/2015,REDACTED,1950,NET,REDACTED,REDACTED
Gloucester City Council,23UE,REDACTED,REDACTED,REDACTED,REDACTED,REDACTED,18/06/2015,REDACTED,50,NET,REDACTED,REDACTED
Gloucester City Council,23UE,REDACTED,REDACTED,REDACTED,REDACTED,REDACTED,18/06/2015,REDACTED,220,NET,REDACTED,REDACTED
Gloucester City Council,23UE,REDACTED,REDACTED,REDACTED,REDACTED,REDACTED,18/06/2015,REDACTED,525,CAP,REDACTED,REDACTED
Gloucester City Council,23UE,Hackney Carriages,HL100,Printing,5300,Bus Lane label,18/06/2015,403939,80,NET,Eurolabel,10252Z
Gloucester City Council,23UE,REDACTED,REDACTED,REDACTED,REDACTED,REDACTED,18/06/2015,REDACTED,368.2,NET,REDACTED,REDACTED
Gloucester City Council,23UE,REDACTED,REDACTED,REDACTED,REDACTED,REDACTED,18/06/2015,REDACTED,100.3,NET,REDACTED,REDACTED
Gloucester City Council,23UE,REDACTED,REDACTED,REDACTED,REDACTED,REDACTED,18/06/2015,REDACTED,400,NET,REDACTED,REDACTED
Gloucester City Council,23UE,Human Resources,EH100,Fees For Services Received,5350,Jun-15,18/06/2015,403868,2000,NET,The Gold Standard,56141C
Gloucester City Council,23UE,Human Resources,EH100,Fees For Services Received,5350,Payroll Charges February 2015,18/06/2015,399345,2602.74,NET,Gloucestershire County Council,18650D
Gloucester City Council,23UE,Investment Property,RB500,General Repair/Maint Buildings,3000,Installation of window film,18/06/2015,398936,1860,NET,Security And Solar Window Films Ltd,15499L
Gloucester City Council,23UE,Play Area Refurbishment,LY071,Contract Payments,20,Plaques,18/06/2015,403845,758,CAP,Streetmaster Products,00534D
Gloucester City Council,23UE,Tourism Marketing,LT100,Security Services Fees,5351,Services July 2015,18/06/2015,403884,90.64,NET,G4s Cash Solutions (Uk) Ltd,04290V
Gloucester City Council,23UE,Utilities,PT502,Electricity Supply,3110,UTILITIES TO JUNE 2015,18/06/2015,403996,13579.15,NET,West Mercia Energy,11669Z
Gloucester City Council,23UE,Utilities,PT502,Gas Supply,3100,UTILITIES TO JUNE 2015,18/06/2015,403996,18672.97,NET,West Mercia Energy,11669Z
Gloucester City Council,23UE,Advance City Attractions,LT109,Materials For Sale,5080,ticket sales on commission,19/06/2015,404056,141.58,NET,Warwick Castle,15215G
Gloucester City Council,23UE,Advance City Attractions,LT109,Sale Of Goods And Services,9230,ticket sales on commission,19/06/2015,404056,-24.46,NET,Warwick Castle,15215G
Gloucester City Council,23UE,Blackfriars,LA609,Contract Cleaning,3620,Cleaning May 2015,19/06/2015,403183,520,NET,Into Cleaning,14609P
Gloucester City Council,23UE,Cemeteries,HC300,Basic Pay - Temporary Staff,2751,landscaper w/e 31/5/15,19/06/2015,403937,263.93,NET,Premiere Employment Group Ltd,55468Z
Gloucester City Council,23UE,Cemeteries,HC300,Basic Pay - Temporary Staff,2751,landscaper w/e 7/6/15,19/06/2015,403938,439.88,NET,Premiere Employment Group Ltd,55468Z
Gloucester City Council,23UE,Community Safety Projects,FP500,Basic Pay - Temporary Staff,2751,temporary staff,19/06/2015,403879,512.02,NET,Travail Employment Ltd,49371W
Gloucester City Council,23UE,Homelessness,CH120,Fees For Services Received,5350,medical report,19/06/2015,404064,20.5,NET,Gloucester City Health Centre,02093U
Gloucester City Council,23UE,REDACTED,REDACTED,REDACTED,REDACTED,REDACTED,19/06/2015,REDACTED,40,NET,REDACTED,REDACTED
Gloucester City Council,23UE,Public Health,HD200,Other Minor Supplies Services,5590,Funding for British Heart Foundation,19/06/2015,391488,10000,NET,Gloucestershire County Council,18650D
Gloucester City Council,23UE,Registration Of Electors,RS400,Fees For Services Received,5350,election closure 7/5/15,19/06/2015,404070,1759.6,NET,Aspire Sports & Cultural Trust,08135V
Gloucester City Council,23UE,Registration Of Electors,RS400,Fees For Services Received,5350,polling station 7/5/15,19/06/2015,404062,42.54,NET,Meadowside Primary School,06353B
Gloucester City Council,23UE,Registration Of Electors,RS400,Fees For Services Received,5350,polling station 7th May 2015,19/06/2015,404060,275,NET,St Mary De Lode Pcc,10663X
Gloucester City Council,23UE,Registration Of Electors,RS400,Fees For Services Received,5350,polling station May 2015,19/06/2015,404059,57.51,NET,Hatherley Infant School,07265P
Gloucester City Council,23UE,The Arbor,HC501,Cleaning Materials,3600,Supply of disposal unit,19/06/2015,401279,34.56,NET,Minster Cleaning Services,02158R
Gloucester City Council,23UE,Tourism Marketing,LT100,Window Cleaning,3610,window cleaning 13/4 & 20/4,19/06/2015,404068,12,NET,Interserve Fs (Uk) Limited,00442K
Gloucester City Council,23UE,Tourism Marketing,LT100,Window Cleaning,3610,window cleaning 4/5 & 27/4,19/06/2015,404069,12,NET,Interserve Fs (Uk) Limited,00442K
Gloucester City Council,23UE,Business Transformation & Tech,RT700,Computer Hardware Maintenance,5426,Flexi iPad Air 2,22/06/2015,404071,445.63,NET,Everything Everywhere Ltd (T-Mobile),02334V
Gloucester City Council,23UE,Cemeteries,HC300,Vocational Training,2970,Training & Assessment,22/06/2015,403871,700,NET,Scb Training Services Limited,15755S
Gloucester City Council,23UE,Civica Admin Charges,RT105,Fees For Services Received,5350,Subscription Advance,22/06/2015,403363,4,NET,Companies House,58954E
Gloucester City Council,23UE,Civica Admin Charges,RT105,Postages,5400,Response Services Licence,22/06/2015,402800,94,NET,Royal Mail S.Wales & South West,35830S
Gloucester City Council,23UE,Crematorium,HC200,Cleaning Materials,3600,CLEANING SERVICES,22/06/2015,403735,17.28,NET,Minster Cleaning Services,02158R
Gloucester City Council,23UE,Docks Complex - Services,RB100,Catering Provisions -Food,5110,FOOD,22/06/2015,403583,4.43,NET,Janes Pantry,24500W
Gloucester City Council,23UE,Docks Complex - Services,RB100,Catering Provisions -Food,5110,FOOD,22/06/2015,403584,19.07,NET,Janes Pantry,24500W
Gloucester City Council,23UE,Docks Complex - Services,RB100,Catering Provisions -Food,5110,FOOD,22/06/2015,403586,8.41,NET,Janes Pantry,24500W
Gloucester City Council,23UE,Docks Complex - Services,RB100,Catering Provisions -Food,5110,FOOD,22/06/2015,403587,9.84,NET,Janes Pantry,24500W
Gloucester City Council,23UE,Docks Complex - Services,RB100,Catering Provisions -Food,5110,FOOD,22/06/2015,403588,16.23,NET,Janes Pantry,24500W
Gloucester City Council,23UE,Docks Complex - Services,RB100,Catering Provisions -Food,5110,FOOD,22/06/2015,403589,23.07,NET,Janes Pantry,24500W
Gloucester City Council,23UE,Docks Complex - Services,RB100,Catering Provisions -Food,5110,FOOD,22/06/2015,403590,17.74,NET,Janes Pantry,24500W
Gloucester City Council,23UE,Docks Complex - Services,RB100,Catering Provisions -Food,5110,FOOD,22/06/2015,403591,13.93,NET,Janes Pantry,24500W
Gloucester City Council,23UE,Docks Complex - Services,RB100,Catering Provisions -Food,5110,FOOD,22/06/2015,403592,9.94,NET,Janes Pantry,24500W
Gloucester City Council,23UE,Docks Complex - Services,RB100,Catering Provisions -Food,5110,FOOD,22/06/2015,403594,14.26,NET,Janes Pantry,24500W
Gloucester City Council,23UE,Docks Complex - Services,RB100,Catering Provisions -Food,5110,FOOD,22/06/2015,403595,32.74,NET,Janes Pantry,24500W
Gloucester City Council,23UE,Docks Complex - Services,RB100,Catering Provisions -Food,5110,FOOD,22/06/2015,403596,6.39,NET,Janes Pantry,24500W
Gloucester City Council,23UE,Docks Complex - Services,RB100,Catering Provisions -Food,5110,FOOD,22/06/2015,403597,10.78,NET,Janes Pantry,24500W
Gloucester City Council,23UE,Docks Complex - Services,RB100,Catering Provisions -Food,5110,FOOD,22/06/2015,403598,17.89,NET,Janes Pantry,24500W
Gloucester City Council,23UE,Docks Complex - Services,RB100,Catering Provisions -Food,5110,FOOD,22/06/2015,403599,17.74,NET,Janes Pantry,24500W
Gloucester City Council,23UE,Docks Complex - Services,RB100,Lift Maintenance,3051,Works 22/05/2015,22/06/2015,403872,577.6,NET,Pickerings Europe Ltd,58816U
Gloucester City Council,23UE,REDACTED,REDACTED,REDACTED,REDACTED,REDACTED,22/06/2015,REDACTED,864.5,CAP,REDACTED,REDACTED
Gloucester City Council,23UE,REDACTED,REDACTED,REDACTED,REDACTED,REDACTED,22/06/2015,REDACTED,840,NET,REDACTED,REDACTED
Gloucester City Council,23UE,Homelessness,CH120,Basic Pay - Temporary Staff,2751,temporary staff,22/06/2015,400127,703,NET,Building Recruitment Company Ltd,55385E
Gloucester City Council,23UE,Nms Contract,HI102,Additional Non-Tender Items,6973,city card self lock tag,22/06/2015,404058,1114,NET,Eurolabel,10252Z
Gloucester City Council,23UE,Statutory Testing,RS310,General Repair/Maint Buildings,3000,GUILDHALL,22/06/2015,403746,89.5,NET,Adt Fire & Security Plc,54086D
Gloucester City Council,23UE,Civica Admin Charges,RT105,Postages,5400,Post 18/05 - 29/05 2015,23/06/2015,403411,1374.05,NET,Royal Mail S.Wales & South West,35830S
Gloucester City Council,23UE,Electrical Investigatory Works,RY142,Capital Intruder & Cctv,19,Alarm System,23/06/2015,403345,1490,CAP,Chubb Fire & Security Ltd,54582K
Gloucester City Council,23UE,Electrical Investigatory Works,RY142,Capital Intruder & Cctv,19,CCTV System Charges,23/06/2015,403208,1150,CAP,Chubb Fire & Security Ltd,54582K
Gloucester City Council,23UE,Electrical Investigatory Works,RY142,Capital Intruder & Cctv,19,CCTV System Charges,23/06/2015,403210,630,CAP,Chubb Fire & Security Ltd,54582K
Gloucester City Council,23UE,Electrical Investigatory Works,RY142,Capital Intruder & Cctv,19,Charges 2015/16,23/06/2015,403870,280,CAP,Chubb Fire & Security Ltd,54582K
Gloucester City Council,23UE,Electrical Investigatory Works,RY142,Capital Intruder & Cctv,19,Charges for CCTV System,23/06/2015,403207,560,CAP,Chubb Fire & Security Ltd,54582K
Gloucester City Council,23UE,REDACTED,REDACTED,REDACTED,REDACTED,REDACTED,23/06/2015,REDACTED,368.2,NET,REDACTED,REDACTED
Gloucester City Council,23UE,REDACTED,REDACTED,REDACTED,REDACTED,REDACTED,23/06/2015,REDACTED,400,NET,REDACTED,REDACTED
Gloucester City Council,23UE,Investment Property,RB500,General Repair/Maint Buildings,3000,Locking of Bollards,23/06/2015,403880,45,NET,Nsgl Ltd,12539E
Gloucester City Council,23UE,REDACTED,REDACTED,REDACTED,REDACTED,REDACTED,23/06/2015,REDACTED,21,NET,REDACTED,REDACTED
Gloucester City Council,23UE,Aspire Admin Charges,LC105,Fees For Services Received,5350,APR2015 staff membership,24/06/2015,404054,696,NET,Aspire Sports & Cultural Trust,08135V
Gloucester City Council,23UE,Civica Admin Charges,RT105,Postages,5400,acct 0870585007 1/6/15-12/6/15,24/06/2015,404065,1554.68,NET,Royal Mail S.Wales & South West,35830S
Gloucester City Council,23UE,Civil Parking Enforcement,PT741,Computer Software Maintenance,5427,MiPermit Transaction Fees,24/06/2015,402620,1334.75,NET,Chipside Ltd,06535T
Gloucester City Council,23UE,Civil Parking Enforcement,PT741,Computer Software Maintenance,5427,Staff Permits,24/06/2015,402621,2562.72,NET,Chipside Ltd,06535T
Gloucester City Council,23UE,Council Streetcare Team,HI101,Maint Of Grounds - General,3030,Soren Larsen Way - Fencing,24/06/2015,402340,468.74,NET,Greenfields Garden Services Ltd,48130G
Gloucester City Council,23UE,REDACTED,REDACTED,REDACTED,REDACTED,REDACTED,24/06/2015,REDACTED,172,NET,REDACTED,REDACTED
Gloucester City Council,23UE,Docks Complex - Services,RB100,Asbestos,3022,Asbestos Samples,24/06/2015,402501,200,NET,Gloucester Asbestos Ltd,00496K
Gloucester City Council,23UE,Docks Complex - Services,RB100,Catering Provisions -Food,5110,FOOD,24/06/2015,403593,8.39,NET,Janes Pantry,24500W
Gloucester City Council,23UE,Docks Complex - Services,RB100,General Repair/Maint Buildings,3000,Call out 23/04/2015,24/06/2015,403414,138,NET,Airvent Systems Limited,51073T
Gloucester City Council,23UE,Docks Complex - Services,RB100,General Repair/Maint Buildings,3000,fees for licence,24/06/2015,403936,129.47,NET,Ppl,49860Z
Gloucester City Council,23UE,Grants To Voluntary Sector,FG100,Members Allocation Fund,7100F,Various Locations - Benches,24/06/2015,402345,2108,NET,Greenfields Garden Services Ltd,48130G
Gloucester City Council,23UE,Investment Property,RB500,Fire Alarm Maintenance,3053,Engineer 08/05/2015,24/06/2015,403013,89.5,NET,Adt Fire & Security Plc,54086D
Gloucester City Council,23UE,Off Street Car Parks,PP110,Fees For Services Received,5350,Jun-15,24/06/2015,402984,492.64,NET,Parkeon Ltd,03238G
Gloucester City Council,23UE,Off Street Car Parks,PP110,Rents,3200,Rent Jun - Dec 2015,24/06/2015,402857,220,NET,Eddisons Commercial (Property Management) Ltd,08767Y
Gloucester City Council,23UE,Off Street Car Parks,PP110,Rents,3200,Rent Jun - Sept 2015,24/06/2015,403330,600,NET,Boots The Chemist,04540V
Gloucester City Council,23UE,Parks Contract Management,LP100,Maint Of Grounds - General,3030,Birch Avenue - Rubber Repairs,24/06/2015,402830,375,NET,Greenfields Garden Services Ltd,48130G
Gloucester City Council,23UE,Parks Contract Management,LP100,Maint Of Grounds - General,3030,Paygrove Lane - Rubber Repairs,24/06/2015,402829,395,NET,Greenfields Garden Services Ltd,48130G
Gloucester City Council,23UE,REDACTED,REDACTED,REDACTED,REDACTED,REDACTED,24/06/2015,REDACTED,22.5,NET,REDACTED,REDACTED
Gloucester City Council,23UE,REDACTED,REDACTED,REDACTED,REDACTED,REDACTED,24/06/2015,REDACTED,3650,CAP,REDACTED,REDACTED
Gloucester City Council,23UE,Tourism Marketing,LT100,Rents,3200,Rent for quarter 24/06/2015,24/06/2015,403212,5725,NET,P W Fido & Associates,01210A
Gloucester City Council,23UE,Ugly Structures,GY010,Contract Payments,20,Kingswalk & Southgate St survey,24/06/2015,404053,1709.8,CAP,Esg Asbestos Ltd,11204B
Gloucester City Council,23UE,Vehicles,RS140,Fuel,4012,fuel,24/06/2015,404055,303.71,NET,Allstar Business Solutions Ltd (Arval),06594A
Gloucester City Council,23UE,Client Revs & Bens Contract,RT240,Fees For Services Received,5350,Payment of Feris start up,25/06/2015,403320,12990,NET,Civica Uk Ltd,10841X
Gloucester City Council,23UE,Docks Complex - Services,RB100,Catering Provisions -Food,5110,FOOD,25/06/2015,403582,17.53,NET,Janes Pantry,24500W
Gloucester City Council,23UE,Docks Complex - Telephones,RB120,Telephones And Fax,5410,Call Charges May 2015,25/06/2015,403878,2001.03,NET,Gamma Business Communications,10260A
Gloucester City Council,23UE,Hackney Carriages,HL100,Fees For Services Received,5350,DBS Charges April 2015,25/06/2015,402095,440,NET,Disclosure And Barring Service,00119W
Gloucester City Council,23UE,Retail Market - Landlord,HM300,Service Charges,3020,Market Hall Service Charge,25/06/2015,403024,11015.5,NET,Workman Llp,11021M
Gloucester City Council,23UE,Cemeteries,HC300,Clothing,5200,Fleece Jackets,26/06/2015,404106,45,NET,Safpro Industrial Supply Co,39190W
Gloucester City Council,23UE,City Museum And Art Gallery,LM200,Events,5952,Sale of Art Prints,26/06/2015,404277,20,NET,Alex Gregory Photography,15764R
Gloucester City Council,23UE,City Museum And Art Gallery,LM200,Publications For Sale,5064,Sale of Art Prints,26/06/2015,404277,60,NET,Alex Gregory Photography,15764R
Gloucester City Council,23UE,City Museum And Art Gallery,LM200,Sale Of Goods And Services,9230,Sale of Art Prints,26/06/2015,404277,-20.84,NET,Alex Gregory Photography,15764R
Gloucester City Council,23UE,City Museum Catering,LM202,Catering Provisions -Food,5110,Milk,26/06/2015,404221,4.6,NET,Total Produce Gloucester,12645E
Gloucester City Council,23UE,City Museum Catering,LM202,Catering Provisions -Food,5110,Milk,26/06/2015,404222,4.6,NET,Total Produce Gloucester,12645E
Gloucester City Council,23UE,City Museum Catering,LM202,Catering Provisions -Food,5110,Milk,26/06/2015,404223,2.3,NET,Total Produce Gloucester,12645E
Gloucester City Council,23UE,City Museum Catering,LM202,Catering Provisions -Food,5110,Milk,26/06/2015,404224,6.9,NET,Total Produce Gloucester,12645E
Gloucester City Council,23UE,City Museum Catering,LM202,Catering Provisions -Food,5110,Milk,26/06/2015,404225,6.9,NET,Total Produce Gloucester,12645E
Gloucester City Council,23UE,City Museum Catering,LM202,Catering Provisions -Food,5110,Milk,26/06/2015,404226,4.6,NET,Total Produce Gloucester,12645E
Gloucester City Council,23UE,City Museum Catering,LM202,Catering Provisions -Food,5110,Milk,26/06/2015,404227,2.3,NET,Total Produce Gloucester,12645E
Gloucester City Council,23UE,City Museum Catering,LM202,Catering Provisions -Food,5110,Milk,26/06/2015,404268,2.3,NET,Total Produce Gloucester,12645E
Gloucester City Council,23UE,REDACTED,REDACTED,REDACTED,REDACTED,REDACTED,26/06/2015,REDACTED,50,NET,REDACTED,REDACTED
Gloucester City Council,23UE,Contact Centre,RB300,Postages,5400,Envelopes,26/06/2015,404113,159.6,NET,Encore Envelopes Ltd,13782H
Gloucester City Council,23UE,Contact Centre,RB300,Postages,5400,Envelopes,26/06/2015,404114,157.12,NET,Encore Envelopes Ltd,13782H
Gloucester City Council,23UE,Contact Centre,RB300,Postages,5400,Envelopes,26/06/2015,404115,241.36,NET,Encore Envelopes Ltd,13782H
Gloucester City Council,23UE,Council Streetcare Team,HI101,General Repair/Maint Buildings,3000,Various Items,26/06/2015,404109,169.38,NET,Ppg Architectural Coatings Uk Limited,04709C
Gloucester City Council,23UE,Council Streetcare Team,HI101,Maint Of Grounds - General,3030,Various Items,26/06/2015,404110,430.9,NET,Ppg Architectural Coatings Uk Limited,04709C
Gloucester City Council,23UE,Crematorium,HC200,National Assist Act Burial Exp,5593,funeral costs,26/06/2015,404121,792,NET,Selim Smith & Co Funeral Directors,15156X
Gloucester City Council,23UE,Crematorium,HC200,"Seeds, Trees, Plants, Shrubs",3028,Flowers,26/06/2015,404122,1378,NET,REDACTED,REDACTED
Gloucester City Council,23UE,Disabled Facilities Grants,CY013,Disabled Facility Grants,74,Disabled Facilities Grant MDF5145,26/06/2015,404273,1150,CAP,Tpg Disableaids,51324R
Gloucester City Council,23UE,Disabled Facilities Grants,CY013,Disabled Facility Grants,74,Disabled Facilities Grant MDF5125,26/06/2015,404274,4574.62,CAP,Mears Home Improvement Ltd,00096G
Gloucester City Council,23UE,Disabled Facilities Grants,CY013,Disabled Facility Grants,74,Disabled Facilities Grant MDF5109,26/06/2015,404275,5587.85,CAP,Mears Home Improvement Ltd,00096G
Gloucester City Council,23UE,Docks Complex - Telephones,RB120,Telephones And Fax,5410,Call Charges April 2015,26/06/2015,402386,3948.11,NET,Gamma Business Communications,10260A
Gloucester City Council,23UE,Docks Complex - Telephones,RB120,Telephones And Fax,5410,Call Charges May 2015,26/06/2015,403865,3948.11,NET,Gamma Business Communications,10260A
Gloucester City Council,23UE,Eastgate Viewing Chamber,LY100,Contract Payments,20,Install New Door 21/11/2014,26/06/2015,404255,2764.53,CAP,Talus Construction Ltd,10401G
Gloucester City Council,23UE,Guildhall Bar And Caf�,LA210,Catering Provisions -Food,5110,Food,26/06/2015,404218,180.68,NET,Woodward Foodservice,10714F
Gloucester City Council,23UE,Guildhall Bar And Caf�,LA210,Catering Provisions -Food,5110,Food,26/06/2015,404219,105.54,NET,Woodward Foodservice,10714F
Gloucester City Council,23UE,Guildhall Bar And Caf�,LA210,Catering Provisions -Food,5110,Milk,26/06/2015,404209,4.6,NET,Total Produce Gloucester,12645E
Gloucester City Council,23UE,Guildhall Bar And Caf�,LA210,Catering Provisions -Food,5110,Milk,26/06/2015,404210,4.6,NET,Total Produce Gloucester,12645E
Gloucester City Council,23UE,Guildhall Bar And Caf�,LA210,Catering Provisions -Food,5110,Milk,26/06/2015,404211,4.6,NET,Total Produce Gloucester,12645E
Gloucester City Council,23UE,Guildhall Bar And Caf�,LA210,Catering Provisions -Food,5110,Milk,26/06/2015,404212,4.6,NET,Total Produce Gloucester,12645E
Gloucester City Council,23UE,Guildhall Bar And Caf�,LA210,Catering Provisions -Food,5110,Milk,26/06/2015,404213,4.6,NET,Total Produce Gloucester,12645E
Gloucester City Council,23UE,Guildhall Bar And Caf�,LA210,Catering Provisions -Food,5110,Milk,26/06/2015,404214,4.6,NET,Total Produce Gloucester,12645E
Gloucester City Council,23UE,Guildhall Bar And Caf�,LA210,Catering Provisions -Food,5110,Milk,26/06/2015,404215,4.6,NET,Total Produce Gloucester,12645E
Gloucester City Council,23UE,Guildhall Bar And Caf�,LA210,Catering Provisions -Food,5110,Milk,26/06/2015,404216,4.6,NET,Total Produce Gloucester,12645E
Gloucester City Council,23UE,Guildhall Bar And Caf�,LA210,Catering Provisions -Food,5110,Milk,26/06/2015,404217,4.6,NET,Total Produce Gloucester,12645E
Gloucester City Council,23UE,REDACTED,REDACTED,REDACTED,REDACTED,REDACTED,26/06/2015,REDACTED,850,NET,REDACTED,REDACTED
Gloucester City Council,23UE,Guildhall Events,LA200,Fees For Services Received,5350,Months News,26/06/2015,403382,28.65,NET,W H Smith Ltd,40860M
Gloucester City Council,23UE,REDACTED,REDACTED,REDACTED,REDACTED,REDACTED,26/06/2015,REDACTED,140,NET,REDACTED,REDACTED
Gloucester City Council,23UE,Guildhall Sound Desks,LY059,Contract Payments,20,Various Items,26/06/2015,403852,53.97,CAP,All Metal Parts Ltd,15587N
Gloucester City Council,23UE,Hempsted Market/Car Boot,HM234,Maint Of Grounds - General,3030,Hempsted Meadows,26/06/2015,404256,2485,NET,Talus Construction Ltd,10401G
Gloucester City Council,23UE,Homelessness,CH120,Board And Lodging,5515,12 Park End Road - June 2015,26/06/2015,404287,854.14,NET,James Legge Property (Ltd),07844R
Gloucester City Council,23UE,Homelessness,CH120,Board And Lodging,5515,2 Worcester Parade - June 2015,26/06/2015,404282,317.06,NET,Carbrey Housing Ltd,11098G
Gloucester City Council,23UE,Homelessness,CH120,Board And Lodging,5515,40 Wellesley Street - June 2015,26/06/2015,404283,608.69,NET,Kalmwood Ltd,08568G
Gloucester City Council,23UE,Homelessness,CH120,Board And Lodging,5515,47 Regent Street - June 2015,26/06/2015,404281,759.01,NET,Carbrey Housing Ltd,11098G
Gloucester City Council,23UE,Homelessness,CH120,Board And Lodging,5515,63 Denmark Road - June 2015,26/06/2015,404285,1221.91,NET,Dorchester Guest House,12298D
Gloucester City Council,23UE,Homelessness,CH120,Board And Lodging,5515,64 Rosehill Street - June 2015,26/06/2015,404280,352.29,NET,Carbrey Housing Ltd,11098G
Gloucester City Council,23UE,REDACTED,REDACTED,REDACTED,REDACTED,REDACTED,26/06/2015,REDACTED,2223.85,NET,REDACTED,REDACTED
Gloucester City Council,23UE,REDACTED,REDACTED,REDACTED,REDACTED,REDACTED,26/06/2015,REDACTED,3381.7,NET,REDACTED,REDACTED
Gloucester City Council,23UE,REDACTED,REDACTED,REDACTED,REDACTED,REDACTED,26/06/2015,REDACTED,870.66,NET,REDACTED,REDACTED
Gloucester City Council,23UE,REDACTED,REDACTED,REDACTED,REDACTED,REDACTED,26/06/2015,REDACTED,1644.57,NET,REDACTED,REDACTED
Gloucester City Council,23UE,REDACTED,REDACTED,REDACTED,REDACTED,REDACTED,26/06/2015,REDACTED,272.72,NET,REDACTED,REDACTED
Gloucester City Council,23UE,REDACTED,REDACTED,REDACTED,REDACTED,REDACTED,26/06/2015,REDACTED,250,NET,REDACTED,REDACTED
Gloucester City Council,23UE,Investment Property,RB500,Internal Decs - Communal Areas,3050,Works 04/06/2015,26/06/2015,404203,404.32,NET,Pickerings Europe Ltd,58816U
Gloucester City Council,23UE,Investment Property,RB500,Lift Maintenance,3051,Engineer 03/06/2015,26/06/2015,404174,150,NET,Pickerings Europe Ltd,58816U
Gloucester City Council,23UE,Investment Property,RB500,Lift Maintenance,3051,Engineer 27/04/2015,26/06/2015,404204,131.25,NET,Pickerings Europe Ltd,58816U
Gloucester City Council,23UE,Northwarehouse,RB150,General Repair/Maint Buildings,3000,Engineer 30/12/2014,26/06/2015,404205,1252,NET,Adt Fire & Security Plc,54086D
Gloucester City Council,23UE,Registration Of Electors,RS400,Fees For Services Received,5350,Delivery - Inv 21914,26/06/2015,403002,145,NET,Furniture Hire Uk,15526K
Gloucester City Council,23UE,The Arbor,HC501,Catering Provisions -Food,5110,Food,26/06/2015,404228,7.8,NET,Total Produce Gloucester,12645E
Gloucester City Council,23UE,The Arbor,HC501,Catering Provisions -Food,5110,Food,26/06/2015,404229,51.3,NET,Total Produce Gloucester,12645E
Gloucester City Council,23UE,The Arbor,HC501,Catering Provisions -Food,5110,Food,26/06/2015,404230,19.49,NET,Total Produce Gloucester,12645E
Gloucester City Council,23UE,The Arbor,HC501,Catering Provisions -Food,5110,Food,26/06/2015,404231,17.11,NET,Total Produce Gloucester,12645E
Gloucester City Council,23UE,The Arbor,HC501,Catering Provisions -Food,5110,Food,26/06/2015,404232,42.24,NET,Total Produce Gloucester,12645E
Gloucester City Council,23UE,The Arbor,HC501,Catering Provisions -Food,5110,Food,26/06/2015,404234,333.51,NET,3663,55585U
Gloucester City Council,23UE,The Arbor,HC501,Catering Provisions -Food,5110,Food,26/06/2015,404238,309.87,NET,3663,55585U
Gloucester City Council,23UE,The Arbor,HC501,Catering Provisions -Food,5110,Food,26/06/2015,404239,270.04,NET,3663,55585U
Gloucester City Council,23UE,The Arbor,HC501,Catering Provisions -Food,5110,Food,26/06/2015,404240,212.26,NET,3663,55585U
Gloucester City Council,23UE,The Arbor,HC501,Catering Provisions -Food,5110,Food,26/06/2015,404257,171.96,NET,3663,55585U
Gloucester City Council,23UE,The Arbor,HC501,Catering Provisions -Food,5110,Food,26/06/2015,404258,402.71,NET,3663,55585U
Gloucester City Council,23UE,The Arbor,HC501,Catering Provisions -Food,5110,Food,26/06/2015,404259,6.14,NET,3663,55585U
Gloucester City Council,23UE,The Arbor,HC501,Catering Provisions -Liquor,5111,Drinks,26/06/2015,404241,188.77,NET,Cellar Supplies Cheltenham Ltd,01563L
Gloucester City Council,23UE,The Arbor,HC501,Cleaning Materials,3600,Cleaning Materials,26/06/2015,404242,34.54,NET,3663,55585U
Gloucester City Council,23UE,The Arbor,HC501,Cleaning Materials,3600,Cleaning Materials,26/06/2015,404243,56.52,NET,3663,55585U
Gloucester City Council,23UE,The Arbor,HC501,Cleaning Materials,3600,Mop Heads,26/06/2015,404237,23.04,NET,3663,55585U
Gloucester City Council,23UE,The Arbor,HC501,Other Minor Supplies Services,5590,Flowers,26/06/2015,404235,39.8,NET,Carols Florist,01274X
Gloucester City Council,23UE,The Arbor,HC501,Other Minor Supplies Services,5590,Flowers,26/06/2015,404236,19.8,NET,Carols Florist,01274X
Gloucester City Council,23UE,Ugly Structures,GY010,Contract Payments,20,Various Items,26/06/2015,403852,120,CAP,All Metal Parts Ltd,15587N
Gloucester City Council,23UE,Vehicles,RS140,Tyres,4014,Repairs,26/06/2015,404111,22.61,NET,Ats Euromaster Ltd,06005E
Gloucester City Council,23UE,City Museum And Art Gallery,LM200,Exhibits And Collections,5038,goods,29/06/2015,395846,25.38,NET,Millington & Ramstedt Ltd,29815S
Gloucester City Council,23UE,City Museum Catering,LM202,Catering Provisions -Food,5110,Food,29/06/2015,404220,132.43,NET,Woodward Foodservice,10714F
Gloucester City Council,23UE,Civica Admin Charges,RT105,Postages,5400,Post 20/04 - 01/05 2015,29/06/2015,404403,1375.51,NET,Royal Mail S.Wales & South West,35830S
Gloucester City Council,23UE,Client Revs & Bens Contract,RT240,Fees For Services Received,5350,Housing Benefit Subsidy Services,29/06/2015,403319,14400,NET,Civica Uk Ltd,10841X
Gloucester City Council,23UE,Countryside Unit,LP201,Tyres,4014,Repairs,29/06/2015,404112,27.76,NET,Ats Euromaster Ltd,06005E
Gloucester City Council,23UE,Financial Services,RT200,Vocational Training,2970,AAT Level 3,29/06/2015,404105,689.7,NET,Premier Training Centre Llp,15004Y
Gloucester City Council,23UE,Guildhall Cinema,LA202,Fees For Services Received,5350,Monthly Film Charge - June 2015,29/06/2015,403850,219.59,NET,Nft Logistics Ltd,13505N
Gloucester City Council,23UE,REDACTED,REDACTED,REDACTED,REDACTED,REDACTED,29/06/2015,REDACTED,75.06,NET,REDACTED,REDACTED
Gloucester City Council,23UE,REDACTED,REDACTED,REDACTED,REDACTED,REDACTED,29/06/2015,REDACTED,100,NET,REDACTED,REDACTED
Gloucester City Council,23UE,Statutory Testing,RS310,Emergency Lighting,3055,Engineer 13/11/2014,29/06/2015,404206,75,NET,Adt Fire & Security Plc,54086D
Gloucester City Council,23UE,Building Control,PT400,Basic Pay - Temporary Staff,2751,Hours Worked,30/06/2015,404127,1224.71,NET,Andrew Gough Consulting Ltd,15589J
Gloucester City Council,23UE,Cemeteries,HC300,Purch Vehicles/M. Plant <5000,4000,Strimmer,30/06/2015,404168,308,NET,Garden Machinery Gloucester,55641K
Gloucester City Council,23UE,REDACTED,REDACTED,REDACTED,REDACTED,REDACTED,30/06/2015,REDACTED,180.5,CAP,REDACTED,REDACTED
Gloucester City Council,23UE,REDACTED,REDACTED,REDACTED,REDACTED,REDACTED,30/06/2015,REDACTED,19,CAP,REDACTED,REDACTED
Gloucester City Council,23UE,Civic Admin And Hospitality,RC210,Other Minor Supplies Services,5590,Photographic Work,30/06/2015,404131,270,NET,T H Photography,55076X
Gloucester City Council,23UE,Civica It Contract,RT270,Contracted Services,6970,MEA Renewal,30/06/2015,403309,116788.8,NET,Civica Uk Ltd,10841X
Gloucester City Council,23UE,Client Revs & Bens Contract,RT240,Bailiffs Fees,5368,VAT due on fees,30/06/2015,404130,0,NET,Bristow & Sutor,05450M
Gloucester City Council,23UE,Client Revs & Bens Contract,RT240,Bailiffs Fees,5368,VAT due on statutory fees,30/06/2015,404129,0,NET,Bristow & Sutor,05450M
Gloucester City Council,23UE,Client Revs & Bens Contract,RT240,Bailiffs Fees,5368,VAT on fees collected,30/06/2015,404166,0,NET,Phoenix Commercial Collections Ltd,13435J
Gloucester City Council,23UE,Client Revs & Bens Contract,RT240,Bailiffs Fees,5368,VAT on fees collected,30/06/2015,404167,0,NET,Phoenix Commercial Collections Ltd,13435J
Gloucester City Council,23UE,Client Revs & Bens Contract,RT240,Bailiffs Fees,5368,VAT on statutory fees,30/06/2015,404128,0,NET,Bristow & Sutor,05450M
Gloucester City Council,23UE,Contact Centre,RB300,Clothing,5200,Blouses,30/06/2015,404107,299.8,NET,Meltemi Company Clothing Limited,54572N
Gloucester City Council,23UE,Countryside Unit,LP201,General Repair/Maint Buildings,3000,Various Tools,30/06/2015,404136,93.15,NET,Screwfix Direct,54672H
Gloucester City Council,23UE,Countryside Unit,LP201,Maint Of Grounds - General,3030,Expanding Foam,30/06/2015,404135,4.16,NET,Screwfix Direct,54672H
Gloucester City Council,23UE,Crematorium,HC200,Memorial Plaques,5053,Plaques,30/06/2015,404157,54,NET,Arkell & Hurcombe,59812T
Gloucester City Council,23UE,Docks Complex - Services,RB100,Catering Provisions -Food,5110,Food,30/06/2015,404422,56.32,NET,Total Produce Gloucester,12645E
Gloucester City Council,23UE,Docks Complex - Services,RB100,Catering Provisions -Food,5110,Food,30/06/2015,404426,410,NET,3663,55585U
Gloucester City Council,23UE,Docks Complex - Services,RB100,Catering Provisions -Food,5110,Food,30/06/2015,404427,212.74,NET,3663,55585U
Gloucester City Council,23UE,Docks Complex - Services,RB100,Catering Provisions -Food,5110,Food,30/06/2015,404428,235.67,NET,3663,55585U
Gloucester City Council,23UE,Docks Complex - Services,RB100,Catering Provisions -Food,5110,Food,30/06/2015,404436,245.09,NET,3663,55585U
Gloucester City Council,23UE,Docks Complex - Services,RB100,Catering Provisions -Food,5110,Food,30/06/2015,404447,0.5,NET,Total Produce Gloucester,12645E
Gloucester City Council,23UE,REDACTED,REDACTED,REDACTED,REDACTED,REDACTED,30/06/2015,REDACTED,342,CAP,REDACTED,REDACTED
Gloucester City Council,23UE,Green Transport Policy,PJ130,Other Minor Supplies Services,5590,Subscription,30/06/2015,404165,140,NET,Landor Links Ltd,56024H
Gloucester City Council,23UE,Guildhall Bar And Caf�,LA210,Catering Provisions -Liquor,5111,Drinks,30/06/2015,404163,1349.47,NET,Cellar Supplies Cheltenham Ltd,01563L
Gloucester City Council,23UE,Guildhall Bar And Caf�,LA210,Catering Provisions -Liquor,5111,Gloucester Gold,30/06/2015,404164,114,NET,Gloucester Brewery,13373F
Gloucester City Council,23UE,Guildhall Bar And Caf�,LA210,Hire Of Equipment,5020,Stock Audit 14/05/2015,30/06/2015,404162,90,NET,Fea Audits,08888J
Gloucester City Council,23UE,REDACTED,REDACTED,REDACTED,REDACTED,REDACTED,30/06/2015,REDACTED,75.06,NET,REDACTED,REDACTED
Gloucester City Council,23UE,REDACTED,REDACTED,REDACTED,REDACTED,REDACTED,30/06/2015,REDACTED,199.36,NET,REDACTED,REDACTED
Gloucester City Council,23UE,REDACTED,REDACTED,REDACTED,REDACTED,REDACTED,30/06/2015,REDACTED,309.58,NET,REDACTED,REDACTED
Gloucester City Council,23UE,REDACTED,REDACTED,REDACTED,REDACTED,REDACTED,30/06/2015,REDACTED,0,NET,REDACTED,REDACTED
Gloucester City Council,23UE,Hempsted Market/Car Boot,HM234,Sewerage And Environ Charges,3402,Hempsted Meadows Toilets,30/06/2015,404137,456.4,NET,Abbey Loos Limited,10787B
Gloucester City Council,23UE,Homelessness,CH120,Fees For Services Received,5350,Storage May 2015,30/06/2015,404153,117.32,NET,Advanced Removals & Storage Ltd,57142R
Gloucester City Council,23UE,Homelessness,CH120,Fees For Services Received,5350,Telephone Interpreting,30/06/2015,404139,47.25,NET,Prime Production Ltd,06262F
Gloucester City Council,23UE,Homelessness,CH120,Removal And Storage Fees,5513,Storage May 2015,30/06/2015,404154,117.32,NET,Advanced Removals & Storage Ltd,57142R
Gloucester City Council,23UE,Homelessness,CH120,Removal And Storage Fees,5513,Storage May 2015,30/06/2015,404155,195.54,NET,Advanced Removals & Storage Ltd,57142R
Gloucester City Council,23UE,Homelessness,CH120,Removal And Storage Fees,5513,Storage May 2015,30/06/2015,404156,20.57,NET,Advanced Removals & Storage Ltd,57142R
Gloucester City Council,23UE,REDACTED,REDACTED,REDACTED,REDACTED,REDACTED,30/06/2015,REDACTED,588.52,NET,REDACTED,REDACTED
Gloucester City Council,23UE,REDACTED,REDACTED,REDACTED,REDACTED,REDACTED,30/06/2015,REDACTED,630,NET,REDACTED,REDACTED
Gloucester City Council,23UE,Human Resources,EH100,Fees For Services Received,5350,Hay Evaluation Training,30/06/2015,403934,2150,NET,Gloucestershire County Council,18650D
Gloucester City Council,23UE,Investment Property,RB500,General Repair/Maint Buildings,3000,Books,30/06/2015,404173,165,NET,Riba Enterprises,09988U
Gloucester City Council,23UE,REDACTED,REDACTED,REDACTED,REDACTED,REDACTED,30/06/2015,REDACTED,760,CAP,REDACTED,REDACTED
Gloucester City Council,23UE,Rehousing,CH111,Fees For Services Received,5350,Medical Report,30/06/2015,404141,20.5,NET,Hadwen Medical Practice,59727U
Gloucester City Council,23UE,Rehousing,CH111,Fees For Services Received,5350,Medical Report,30/06/2015,404140,20.5,NET,Kingsholm Surgery,11948S
Gloucester City Council,23UE,Business Transformation & Tech,RT700,Computer Hardware <5000,5420,Dell Latitude,01/07/2015,404298,1075.64,NET,Dell Computers Corporation Ltd,55920C
Gloucester City Council,23UE,Client Revs & Bens Contract,RT240,Fees For Services Received,5350,Arrests & Detentions,01/07/2015,404305,247.5,NET,Assevarate Ltd,11749A
Gloucester City Council,23UE,Disabled Facilities Grants,CY013,Disabled Facility Grants,74,Level Access Shower,01/07/2015,401627,5194.28,CAP,Snape Construction Ltd,40958T
Gloucester City Council,23UE,Docks Complex - Services,RB100,Catering Provisions -Food,5110,Food,01/07/2015,404407,8.64,NET,Total Produce Gloucester,12645E
Gloucester City Council,23UE,Docks Complex - Services,RB100,Catering Provisions -Food,5110,Food,01/07/2015,404408,80.06,NET,Total Produce Gloucester,12645E
Gloucester City Council,23UE,Docks Complex - Services,RB100,Catering Provisions -Food,5110,Food,01/07/2015,404409,11.64,NET,Total Produce Gloucester,12645E
Gloucester City Council,23UE,Docks Complex - Services,RB100,Catering Provisions -Food,5110,Food,01/07/2015,404410,21.11,NET,Total Produce Gloucester,12645E
Gloucester City Council,23UE,Docks Complex - Services,RB100,Catering Provisions -Food,5110,Food,01/07/2015,404411,49.5,NET,Total Produce Gloucester,12645E
Gloucester City Council,23UE,Docks Complex - Services,RB100,Catering Provisions -Food,5110,Food,01/07/2015,404412,36.26,NET,Total Produce Gloucester,12645E
Gloucester City Council,23UE,Docks Complex - Services,RB100,Catering Provisions -Food,5110,Food,01/07/2015,404413,33.83,NET,Total Produce Gloucester,12645E
Gloucester City Council,23UE,Docks Complex - Services,RB100,Catering Provisions -Food,5110,Food,01/07/2015,404414,34.36,NET,Total Produce Gloucester,12645E
Gloucester City Council,23UE,Docks Complex - Services,RB100,Catering Provisions -Food,5110,Food,01/07/2015,404416,22.62,NET,Total Produce Gloucester,12645E
Gloucester City Council,23UE,Docks Complex - Services,RB100,Catering Provisions -Food,5110,Food,01/07/2015,404417,12.08,NET,Total Produce Gloucester,12645E
Gloucester City Council,23UE,Docks Complex - Services,RB100,Catering Provisions -Food,5110,Food,01/07/2015,404418,33.89,NET,Total Produce Gloucester,12645E
Gloucester City Council,23UE,Docks Complex - Services,RB100,Catering Provisions -Food,5110,Food,01/07/2015,404419,15.84,NET,Total Produce Gloucester,12645E
Gloucester City Council,23UE,Docks Complex - Services,RB100,Catering Provisions -Food,5110,Food,01/07/2015,404420,43.2,NET,Total Produce Gloucester,12645E
Gloucester City Council,23UE,Docks Complex - Services,RB100,Catering Provisions -Food,5110,Food,01/07/2015,404421,40.67,NET,Total Produce Gloucester,12645E
Gloucester City Council,23UE,Docks Complex - Services,RB100,Catering Provisions -Food,5110,Food,01/07/2015,404423,8.64,NET,Total Produce Gloucester,12645E
Gloucester City Council,23UE,Docks Complex - Services,RB100,Catering Provisions -Food,5110,Food,01/07/2015,404424,60.85,NET,Total Produce Gloucester,12645E
Gloucester City Council,23UE,Docks Complex - Services,RB100,Catering Provisions -Food,5110,Food,01/07/2015,404425,22.72,NET,Total Produce Gloucester,12645E
Gloucester City Council,23UE,Docks Complex - Services,RB100,Repair/Maint Of Fixed Plant,3006,Annual Service 2015,01/07/2015,404401,320,NET,Hewer Facilities Mgt Ltd,05232A
Gloucester City Council,23UE,Docks Complex - Services,RB100,Repair/Maint Of Fixed Plant,3006,Engineer 16/06/2015,01/07/2015,404398,210,NET,Cooltherm,06087Z
Gloucester City Council,23UE,Docks Complex - Services,RB100,Repair/Maint Of Fixed Plant,3006,Engineer 17/06/2015,01/07/2015,404399,408,NET,Cooltherm,06087Z
Gloucester City Council,23UE,Financial Services,RT200,Training Course Fees,5367,AAT Exam,01/07/2015,404161,73.5,NET,Pitman Training Cheltenham,15476Z
Gloucester City Council,23UE,Gloucester Partnership,FP106,Other Minor Supplies Services,5590,Room Hire May 2015,01/07/2015,404301,30,NET,Quedgeley Parish Council,48506G
Gloucester City Council,23UE,Guildhall Events,LA200,Advertising And Publicity,5702,Advert 24/06/2015,01/07/2015,404299,325,NET,Forest Of Dean & Wye Valley Review,14590K
Gloucester City Council,23UE,REDACTED,REDACTED,REDACTED,REDACTED,REDACTED,01/07/2015,REDACTED,2000,NET,REDACTED,REDACTED
Gloucester City Council,23UE,REDACTED,REDACTED,REDACTED,REDACTED,REDACTED,01/07/2015,REDACTED,1950,NET,REDACTED,REDACTED
Gloucester City Council,23UE,Hmo Licences,HE520,Operational Equipment <5000,5012,Membership of EHN 2015/16,01/07/2015,404303,95,NET,Empty Homes Network,12954M
Gloucester City Council,23UE,Investment Property,RB500,General Repair/Maint Buildings,3000,Checks May 2015,01/07/2015,404400,946,NET,Hewer Facilities Mgt Ltd,05232A
Gloucester City Council,23UE,Investment Property,RB500,General Repair/Maint Buildings,3000,MTC Contract May 2015,01/07/2015,404311,10074.33,NET,Rf Gardiner Limited,12299B
Gloucester City Council,23UE,Investment Property,RB500,Repair/Maint Of Fixed Plant,3006,Annual Service 2015,01/07/2015,404402,2481,NET,Hewer Facilities Mgt Ltd,05232A
Gloucester City Council,23UE,Pest Control,HD400,Fees For Services Received,5350,Gull Control Treatment,01/07/2015,404304,6669,NET,Mitie Pest Control Ltd,15737U
Gloucester City Council,23UE,Public Health,HD200,Other Minor Supplies Services,5590,NPLQ Course July 2015,01/07/2015,404302,240,NET,Aspire Sports & Cultural Trust,08135V
Gloucester City Council,23UE,Registration Of Electors,RS400,Fees For Services Received,5350,Room Hire 07/05/2015,01/07/2015,404306,150,NET,St Aldate Church,02117F
Gloucester City Council,23UE,Registration Of Electors,RS400,Postages,5400,Response Plus Service,01/07/2015,403881,186.44,NET,Royal Mail S.Wales & South West,35830S
Gloucester City Council,23UE,Retail Market - Landlord,HM300,Sewerage And Environ Charges,3402,Eastgate Market 11/05/2015,01/07/2015,404309,410,NET,Three Counties Drain Service,44033V
Gloucester City Council,23UE,Retail Market - Landlord,HM300,Sewerage And Environ Charges,3402,Eastgate Market 30/03/2015,01/07/2015,404431,250,NET,Three Counties Drain Service,44033V
Gloucester City Council,23UE,Robinswood Hlf Archaeology,RY217,Contract Payments,20,Excavation Support June 2015,01/07/2015,404294,1012.8,CAP,A J Roberts T/A Archeoscan,14562R
Gloucester City Council,23UE,Council Streetcare Team,HI101,General Repair/Maint Buildings,3000,Playground Repairs,,402994,132.6,NET,Enterprise (Aol) Ltd,06695G
Gloucester City Council,23UE,Docks Complex - Services,RB100,Operational Equipment <5000,5012,Salt Spreader,,398721,278,NET,Ermin Plant Hire & Services Ltd,14150V
Gloucester City Council,23UE,Nms Contract,HI102,Contracted Services,6970,Pension,,402164,11027.5,NET,Enterprise (Aol) Ltd,06695G
Gloucester City Council,23UE,Nms Contract,HI102,Contracted Services,6970,pension Recharge April 2015,,402852,10529.87,NET,Enterprise (Aol) Ltd,06695G
Gloucester City Council,23UE,Nms Contract,HI102,Contracted Services,6970,Pension Recharge January 2015,,402853,10480.2,NET,Enterprise (Aol) Ltd,06695G
Gloucester City Council,23UE,Nms Contract,HI102,Contracted Services,6970,Pension Recharge March 2015,,402165,10405.77,NET,Enterprise (Aol) Ltd,06695G
Gloucester City Council,23UE,Off Street Car Parks,PP110,Contracted Services,6970,Trade Waste Service Apr- Jun 2015,,399066,290.42,NET,Enterprise (Aol) Ltd,06695G
Gloucester City Council,23UE,Parks Contract Management,LP100,Maint Of Grounds - General,3030,Playgorund Repairs,,402994,845.94,NET,Enterprise (Aol) Ltd,06695G
Gloucester City Council,23UE,REDACTED,REDACTED,REDACTED,REDACTED,REDACTED,,REDACTED,65,NET,REDACTED,REDACTED
Gloucester City Council,23UE,Tic Trading,LT110,Trade Refuse Sacks,5040,trade sacks,,404066,1848.8,NET,Enterprise (Aol) Ltd,06695G
Gloucester City Council,23UE,Utilities,PT502,Electricity Supply,3110,ROMAN EXCAVATIONS,,403094,709.26,NET,Southern Electric,05714A
,,,,,,,,Sum:,3338434.95,,,
